Workbook

Sheet TR132
A1: Indication of FFR results for Tender Round 132, accepted tenders will be officially notified via an issued acceptance letter.
A2: Tender Ref | B2: Status | C2: Rejection Code | D2: Company Name | E2: Tendered Unit (BMU/Unit ID) | F2: TO connection / DNO connection | G2: Generation Type | H2: Start Date | I2: End Date | J2: Tendered Period (dd.mm.yy - dd.mm.yy) | K2: Applicable FFR Capability Data Table | L2: Tendered Frames per Service Day | U2: Tendered Prices*** | X2: BMUs Only - Applicable Balancing Service (i.e. ABSVD Imbalance) YES/NO | Y2: Dynamic Providers Only | AC2: Dynamic Providers only | AJ2: Please indicate as per detail change provision if you are adding volume | AK2: Please state the accepted tender that you are stacking onto | AL2: Please state if this is an all or nothing bid. Clearly reference what lines are included in each all or nothing bid | AM2: Please indicate if this is a mutually exclusive tender | AN2: Non-Dynamic Providers | AP2: Comments
L3: Working Days (Mon-Fri) | O3: Saturdays | R3: Sundays/Bank Holidays | U3: Availability Fee (£/h) | V3: Nomination Fee (£/h) | W3: Window Initiation Fee (£/window) | Y3: Maximum Part Load Point (MW) | Z3: Minimum Part Load Point (MW) | AA3: Minimum MEL (MW) | AB3: Maximum SEL (MW) | AN3: Volume of Response Tendered
B4: Status | C4: Rejection Code | L4: From | M4: To | N4: Duration (h) | O4: From | P4: To | Q4: Duration (h) | R4: From | S4: To | T4: Duration (h) | AC4: Primary Response (max.) @ 0.2Hz (MW) | AD4: Primary Response (max.) @ 0.5Hz (MW) | AE4: Primary Response (max.) @ 0.8Hz (MW) | AF4: Secondary Response (max.) @ 0.2/0.2Hz (MW) | AG4: Secondary Response (max.) @ 0.5/0.5Hz (MW) | AH4: High Frequency Response (max.) @ 0.2Hz (MW) | AI4: High Frequency Response (max.) @ 0.5Hz (MW) | AN4: Automatic Response Energy Deliverable by 10s (MW) | AO4: Automatic Response Energy Deliverable by 30s (MW)
A5: 132 | D5: Example Company | E5: Ex-FFR-1 | F5: TO connection | G5: Wind | H5: =#REF! ->  | I5: =#REF! ->  | J5: =IFERROR(TEXT(H5,"DD.MM.YY")&" - "&TEXT(I5,"DD.MM.YY")&" ("&DATEDIF(H5,I5+1,"m")&" months)","Tender End Date is Before Start Date") -> Tender End Date is Before Start Date | K5: As per FFR framework agreement | L5: 2300 | M5: 700 | N5: =IF(L5>M5, (2400-L5+M5)/100, IF(AND(L5="",M5="",L5=M5), "", IF(L5=M5,24,(M5-L5)/100))) -> 8 | O5: 2300 | P5: 700 | Q5: =IF(O5>P5, (2400-O5+P5)/100, IF(AND(O5="",P5="",O5=P5), "", IF(O5=P5,24,(P5-O5)/100))) -> 8 | R5: 2300 | S5: 700 | T5: =IF(R5>S5, (2400-R5+S5)/100, IF(AND(R5="",S5="",R5=S5), "", IF(R5=S5,24,(S5-R5)/100))) -> 8 | U5: 100 | V5: 600 | W5: - | X5: - | Y5: - | Z5: - | AA5: - | AB5: - | AC5: - | AD5: - | AE5: - | AF5: - | AG5: - | AH5: - | AI5: - | AJ5: - | AK5: - | AN5: - | AO5: - | AP5: -
A6: 131 | D6: Example Company | E6: =E5 -> Ex-FFR-1 | F6: DNO connection | G6: Gas | H6: =H5 ->  | I6: =I5 ->  | J6: =IFERROR(TEXT(H6,"DD.MM.YY")&" - "&TEXT(I6,"DD.MM.YY")&" ("&DATEDIF(H6,I6+1,"m")&" months)","Tender End Date is Before Start Date") -> Tender End Date is Before Start Date | K6: As per FFR framework agreement | L6: 700 | M6: 2300 | N6: 16 | O6: 700 | P6: 2300 | Q6: 16 | R6: 700 | S6: 2300 | T6: 16 | U6: 600 | V6: 100 | W6: - | X6: - | Y6: - | Z6: - | AA6: - | AB6: - | AC6: - | AD6: - | AE6: - | AF6: - | AG6: - | AH6: - | AI6: - | AJ6: - | AK6: - | AN6: - | AO6: - | AP6: -
A7: =A5+0.001 -> 132.001 | B7: Accepted | C7: NA | D7: Habitat Energy Limited | E7: HAB4-FFR | F7: DNO connection | G7: DSF: Storage (for export) | H7: 2020-12-31 | I7: 2021-01-31 | J7: 31.12.20 - 31.01.21 (1 months) | K7: As per FFR framework agreement | L7: 2300 | M7: 2300 | N7: =IF(L7>M7, (2400-L7+M7)/100, IF(AND(L7="",M7="",L7=M7), "", IF(L7=M7,24,(M7-L7)/100))) -> 24 | O7: 2300 | P7: 2300 | Q7: =IF(O7>P7, (2400-O7+P7)/100, IF(AND(O7="",P7="",O7=P7), "", IF(O7=P7,24,(P7-O7)/100))) -> 24 | R7: 2300 | S7: 2300 | T7: =IF(R7>S7, (2400-R7+S7)/100, IF(AND(R7="",S7="",R7=S7), "", IF(R7=S7,24,(S7-R7)/100))) -> 24 | U7: 397.44 | V7: 0 | W7: - | X7: - | AC7: 14.4 | AD7: 36 | AE7: 36 | AF7: 14.4 | AG7: 36 | AH7: 14.4 | AI7: 36
A8: =A7+0.001 -> 132.002 | B8: Accepted | C8: NA | D8: Habitat Energy Limited | E8: HAB2-FFR | F8: DNO connection | G8: DSF: Storage (for export) | H8: 2020-12-31 | I8: 2021-01-31 | J8: 31.12.20 - 31.01.21 (1 months) | K8: As per FFR framework agreement | L8: 2300 | M8: 2300 | N8: =IF(L8>M8, (2400-L8+M8)/100, IF(AND(L8="",M8="",L8=M8), "", IF(L8=M8,24,(M8-L8)/100))) -> 24 | O8: 2300 | P8: 2300 | Q8: =IF(O8>P8, (2400-O8+P8)/100, IF(AND(O8="",P8="",O8=P8), "", IF(O8=P8,24,(P8-O8)/100))) -> 24 | R8: 2300 | S8: 2300 | T8: =IF(R8>S8, (2400-R8+S8)/100, IF(AND(R8="",S8="",R8=S8), "", IF(R8=S8,24,(S8-R8)/100))) -> 24 | U8: 61.5 | V8: 0 | W8: - | X8: - | AC8: 2 | AD8: 5 | AE8: 5 | AF8: 2 | AG8: 5 | AH8: 2 | AI8: 5
A9: 132.003 | B9: Rejected | C9: 2 | D9: Habitat Energy Limited | E9: HAB3-FFR | F9: DNO connection | G9: DSF: Storage (for export) | H9: 2020-12-31 | I9: 2021-01-31 | J9: 31.12.20 - 31.01.21 (1 months) | K9: As per FFR framework agreement | L9: 2300 | M9: 2300 | N9: 24 | O9: 2300 | P9: 2300 | Q9: 24 | R9: 2300 | S9: 2300 | T9: 24 | U9: 297.75 | V9: 0 | W9: - | X9: - | AC9: 6 | AD9: 15 | AE9: 15 | AF9: 6 | AG9: 15 | AH9: 6 | AI9: 15
A10: 132.004 | B10: Rejected | C10: 2 | D10: Habitat Energy Limited | E10: AG-HEL00G | F10: DNO connection | G10: DSF: Storage (for export) | H10: 2020-12-31 | I10: 2021-01-31 | J10: 31.12.20 - 31.01.21 (1 months) | K10: As per FFR framework agreement | L10: 2300 | M10: 2300 | N10: 24 | O10: 2300 | P10: 2300 | Q10: 24 | R10: 2300 | S10: 2300 | T10: 24 | U10: 950.11 | V10: 0 | W10: - | X10: Yes | AC10: 19.6 | AD10: 49 | AE10: 49 | AF10: 19.6 | AG10: 49 | AH10: 19.6 | AI10: 49
A11: 132.005 | B11: Rejected | C11: 2 | D11: Habitat Energy Limited | E11: AG-HEL01H | F11: DNO connection | G11: DSF: Storage (for export) | H11: 2020-12-31 | I11: 2021-01-31 | J11: 31.12.20 - 31.01.21 (1 months) | K11: As per FFR framework agreement | L11: 2300 | M11: 2300 | N11: 24 | O11: 2300 | P11: 2300 | Q11: 24 | R11: 2300 | S11: 2300 | T11: 24 | U11: 387.4 | V11: 0 | W11: - | X11: Yes | AC11: 8 | AD11: 20 | AE11: 20 | AF11: 8 | AG11: 20 | AH11: 6.4 | AI11: 16
A12: 132.006 | B12: Accepted | C12: NA | D12: GridBeyond Limited | E12: GBND-2 | F12: DNO connection | G12: DSF: Load response | H12: 2020-12-31 | I12: 2021-01-31 | J12: 31.12.20 - 31.01.21 (1 months) | K12: As per FFR framework agreement | L12: 2300 | M12: 700 | N12: 8 | U12: 205.2 | AC12: 7.2 | AD12: 18 | AE12: 18 | AF12: 7.2 | AG12: 18 | AH12: 7.2 | AI12: 18 | AL12: A
A13: 132.007 | B13: Accepted | C13: NA | D13: GridBeyond Limited | E13: GBND-2 | F13: DNO connection | G13: DSF: Load response | H13: 2021-01-01 | I13: 2021-01-31 | J13: 01.01.21 - 31.01.21 (1 months) | K13: As per FFR framework agreement | L13: 700 | M13: 1500 | N13: 8 | U13: 206.55 | AC13: 6.8 | AD13: 17 | AE13: 17 | AF13: 6.8 | AG13: 17 | AH13: 6.8 | AI13: 17 | AL13: B
A14: 132.008 | B14: Accepted | C14: NA | D14: GridBeyond Limited | E14: GBND-2 | F14: DNO connection | G14: DSF: Load response | H14: 2021-01-01 | I14: 2021-01-31 | J14: 01.01.21 - 31.01.21 (1 months) | K14: As per FFR framework agreement | L14: 1900 | M14: 2300 | N14: 4 | U14: 183.6 | AC14: 6 | AD14: 15 | AE14: 15 | AF14: 6 | AG14: 15 | AH14: 6 | AI14: 15 | AL14: C
A15: 132.009 | B15: Accepted | C15: NA | D15: GridBeyond Limited | E15: GBND-2 | F15: DNO connection | G15: DSF: Load response | H15: 2020-12-31 | I15: 2021-01-31 | J15: 31.12.20 - 31.01.21 (1 months) | K15: As per FFR framework agreement | O15: 2300 | P15: 700 | Q15: 8 | U15: 102.6 | AC15: 3.6 | AD15: 9 | AE15: 9 | AF15: 3.6 | AG15: 9 | AH15: 3.6 | AI15: 9 | AL15: A
A16: 132.01 | B16: Accepted | C16: NA | D16: GridBeyond Limited | E16: GBND-2 | F16: DNO connection | G16: DSF: Load response | H16: 2021-01-01 | I16: 2021-01-31 | J16: 01.01.21 - 31.01.21 (1 months) | K16: As per FFR framework agreement | O16: 700 | P16: 1500 | Q16: 8 | U16: 109.35 | AC16: 3.6 | AD16: 9 | AE16: 9 | AF16: 3.6 | AG16: 9 | AH16: 3.6 | AI16: 9 | AL16: B
A17: 132.011 | B17: Accepted | C17: NA | D17: GridBeyond Limited | E17: GBND-2 | F17: DNO connection | G17: DSF: Load response | H17: 2021-01-01 | I17: 2021-01-31 | J17: 01.01.21 - 31.01.21 (1 months) | K17: As per FFR framework agreement | O17: 1500 | P17: 2300 | Q17: 8 | U17: 110.16 | AC17: 3.6 | AD17: 9 | AE17: 9 | AF17: 3.6 | AG17: 9 | AH17: 3.6 | AI17: 9 | AL17: C
A18: 132.012 | B18: Accepted | C18: NA | D18: GridBeyond Limited | E18: GBND-2 | F18: DNO connection | G18: DSF: Load response | H18: 2020-12-31 | I18: 2021-01-31 | J18: 31.12.20 - 31.01.21 (1 months) | K18: As per FFR framework agreement | R18: 2300 | S18: 700 | T18: 8 | U18: 102.6 | AC18: 3.6 | AD18: 9 | AE18: 9 | AF18: 3.6 | AG18: 9 | AH18: 3.6 | AI18: 9 | AL18: A
A19: 132.013 | B19: Accepted | C19: NA | D19: GridBeyond Limited | E19: GBND-2 | F19: DNO connection | G19: DSF: Load response | H19: 2021-01-01 | I19: 2021-01-31 | J19: 01.01.21 - 31.01.21 (1 months) | K19: As per FFR framework agreement | R19: 700 | S19: 1500 | T19: 8 | U19: 109.35 | AC19: 3.6 | AD19: 9 | AE19: 9 | AF19: 3.6 | AG19: 9 | AH19: 3.6 | AI19: 9 | AL19: B
A20: 132.014 | B20: Accepted | C20: NA | D20: GridBeyond Limited | E20: GBND-2 | F20: DNO connection | G20: DSF: Load response | H20: 2021-01-01 | I20: 2021-01-31 | J20: 01.01.21 - 31.01.21 (1 months) | K20: As per FFR framework agreement | R20: 1500 | S20: 2300 | T20: 8 | U20: 110.16 | AC20: 3.6 | AD20: 9 | AE20: 9 | AF20: 3.6 | AG20: 9 | AH20: 3.6 | AI20: 9 | AL20: C
A21: 132.015 | B21: Rejected | C21: 2 | D21: BLOXWICH ENERGY STORAGE LIMITED | E21: ARNKB-1 | F21: DNO connection | G21: Battery | H21: 2020-12-31 | I21: 2021-01-31 | J21: 31.12.20 - 31.01.21 (1 months) | K21: As per FFR framework agreement | L21: 2300 | M21: 2300 | N21: =IF(L21>M21, (2400-L21+M21)/100, IF(AND(L21="",M21="",L21=M21), "", IF(L21=M21,24,(M21-L21)/100))) -> 24 | O21: 2300 | P21: 2300 | Q21: =IF(O21>P21, (2400-O21+P21)/100, IF(AND(O21="",P21="",O21=P21), "", IF(O21=P21,24,(P21-O21)/100))) -> 24 | R21: 2300 | S21: 2300 | T21: =IF(R21>S21, (2400-R21+S21)/100, IF(AND(R21="",S21="",R21=S21), "", IF(R21=S21,24,(S21-R21)/100))) -> 24 | U21: 804.08 | X21: YES | AC21: 15.2 | AD21: 38 | AE21: 38 | AF21: 15.2 | AG21: 38 | AH21: 15.2 | AI21: 38
A22: 132.016 | B22: Rejected | C22: 2 | D22: Drax Power Limited | E22: DRAX_01Z | F22: TO connection | G22: Bio Fuel | H22: 2020-12-31 | I22: 2021-01-31 | J22: 31.12.20 - 31.01.21 (1 months) | K22: As per FFR framework agreement | L22: 2300 | M22: 2300 | N22: =IF(L22>M22, (2400-L22+M22)/100, IF(AND(L22="",M22="",L22=M22), "", IF(L22=M22,24,(M22-L22)/100))) -> 24 | O22: 2300 | P22: 2300 | Q22: =IF(O22>P22, (2400-O22+P22)/100, IF(AND(O22="",P22="",O22=P22), "", IF(O22=P22,24,(P22-O22)/100))) -> 24 | R22: 2300 | S22: 2300 | T22: =IF(R22>S22, (2400-R22+S22)/100, IF(AND(R22="",S22="",R22=S22), "", IF(R22=S22,24,(S22-R22)/100))) -> 24 | U22: 218 | V22: 0 | X22: Yes | Y22: 660 | Z22: 420 | AA22: 420 | AB22: 300 | AC22: 0 | AD22: 0 | AE22: 0 | AF22: 0 | AG22: 0 | AH22: 24 | AI22: 68 | AJ22: No | AK22: n/a | AM22: n/a
A23: 132.017 | B23: Rejected | C23: 2 | D23: Centrica Brigg Ltd | E23: ROOSB-1 | F23: DNO connection | G23: Battery | H23: 2020-12-31 | I23: 2021-01-31 | J23: 31.12.20 - 31.01.21 (1 months) | K23: As per FFR framework agreement | L23: 2300 | M23: 2300 | N23: =IF(L23>M23, (2400-L23+M23)/100, IF(AND(L23="",M23="",L23=M23), "", IF(L23=M23,24,(M23-L23)/100))) -> 24 | O23: 2300 | P23: 2300 | Q23: =IF(O23>P23, (2400-O23+P23)/100, IF(AND(O23="",P23="",O23=P23), "", IF(O23=P23,24,(P23-O23)/100))) -> 24 | R23: 2300 | S23: 2300 | T23: =IF(R23>S23, (2400-R23+S23)/100, IF(AND(R23="",S23="",R23=S23), "", IF(R23=S23,24,(S23-R23)/100))) -> 24 | U23: 787.25 | V23: 0 | W23: 0 | X23: Yes | Y23: 2 | Z23: 0 | AA23: 47 | AB23: 2 | AC23: 18.8 | AD23: 47 | AE23: 47 | AF23: 18.8 | AG23: 47 | AH23: 18.8 | AI23: 47
A24: 132.018 | B24: Accepted | C24: NA | D24: REstore Flexpond UK Ltd | E24: REST-1 | F24: DNO connection | G24: Multiple Fuel Type | H24: 2020-12-31 | I24: 2021-01-31 | J24: 31.12.20 - 31.01.21 (1 months) | K24: As per FFR framework agreement | L24: 2300 | M24: 1500 | N24: =IF(L24>M24, (2400-L24+M24)/100, IF(AND(L24="",M24="",L24=M24), "", IF(L24=M24,24,(M24-L24)/100))) -> 16 | O24: 2300 | P24: 1500 | Q24: =IF(O24>P24, (2400-O24+P24)/100, IF(AND(O24="",P24="",O24=P24), "", IF(O24=P24,24,(P24-O24)/100))) -> 16 | R24: 2300 | S24: 1500 | T24: =IF(R24>S24, (2400-R24+S24)/100, IF(AND(R24="",S24="",R24=S24), "", IF(R24=S24,24,(S24-R24)/100))) -> 16 | U24: 155.2 | V24: 0 | W24: 0 | AC24: 6.4 | AD24: 16 | AE24: 16 | AF24: 6.4 | AG24: 16 | AH24: 6.4 | AI24: 16 | AL24: A | AM24: Mutually exclusive with C
A25: 132.019 | B25: Accepted | C25: NA | D25: REstore Flexpond UK Ltd | E25: REST-1 | F25: DNO connection | G25: Multiple Fuel Type | H25: 2021-01-01 | I25: 2021-01-31 | J25: 01.01.21 - 31.01.21 (1 months) | K25: As per FFR framework agreement | L25: 1500 | M25: 2300 | N25: 8 | O25: 1500 | P25: 2300 | Q25: 8 | R25: 1500 | S25: 2300 | T25: 8 | U25: 191.68 | V25: 0 | W25: 0 | AC25: 6.4 | AD25: 16 | AE25: 16 | AF25: 6.4 | AG25: 16 | AH25: 6.4 | AI25: 16 | AL25: B | AM25: Mutually Exclusive with C
A26: 132.02 | B26: Rejected | C26: 4 | D26: REstore Flexpond UK Ltd | E26: REST-1 | F26: DNO connection | G26: Multiple Fuel Type | H26: 2020-12-31 | I26: 2021-01-31 | J26: 31.12.20 - 31.01.21 (1 months) | K26: As per FFR framework agreement | L26: 2300 | M26: 2300 | N26: 24 | O26: 2300 | P26: 2300 | Q26: 24 | R26: 2300 | S26: 2300 | T26: 24 | U26: 169.6 | V26: 0 | W26: 0 | AC26: 6.4 | AD26: 16 | AE26: 16 | AF26: 6.4 | AG26: 16 | AH26: 6.4 | AI26: 16 | AL26: C | AM26: Mutually Exclusive with A & B
A27: =A26+0.001 -> 132.021 | B27: Accepted | C27: NA | D27: Kiwi Power Ltd | E27: KIWIE-2 | F27: DNO connection | G27: DSF: Storage (onsite) | H27: 2020-12-31 | I27: 2021-01-31 | J27: 31.12.20 - 31.01.21 (1 months) | K27: As per FFR framework agreement | L27: 2300 | M27: 700 | N27: =IF(L27>M27, (2400-L27+M27)/100, IF(AND(L27="",M27="",L27=M27), "", IF(L27=M27,24,(M27-L27)/100))) -> 8 | O27: 2300 | P27: 700 | Q27: =IF(O27>P27, (2400-O27+P27)/100, IF(AND(O27="",P27="",O27=P27), "", IF(O27=P27,24,(P27-O27)/100))) -> 8 | R27: 2300 | S27: 700 | T27: =IF(R27>S27, (2400-R27+S27)/100, IF(AND(R27="",S27="",R27=S27), "", IF(R27=S27,24,(S27-R27)/100))) -> 8 | U27: 37.6 | AC27: 1.6 | AD27: 4 | AE27: 4 | AF27: 1.6 | AG27: 4 | AH27: 1.6 | AI27: 4
A28: =A27+0.001 -> 132.022 | B28: Accepted | C28: NA | D28: Kiwi Power Ltd | E28: KIWIE-2 | F28: DNO connection | G28: DSF: Storage (onsite) | H28: 2021-01-01 | I28: 2021-01-31 | J28: 01.01.21 - 31.01.21 (1 months) | K28: As per FFR framework agreement | L28: 700 | M28: 1500 | N28: =IF(L28>M28, (2400-L28+M28)/100, IF(AND(L28="",M28="",L28=M28), "", IF(L28=M28,24,(M28-L28)/100))) -> 8 | O28: 700 | P28: 1500 | Q28: =IF(O28>P28, (2400-O28+P28)/100, IF(AND(O28="",P28="",O28=P28), "", IF(O28=P28,24,(P28-O28)/100))) -> 8 | R28: 700 | S28: 1500 | T28: =IF(R28>S28, (2400-R28+S28)/100, IF(AND(R28="",S28="",R28=S28), "", IF(R28=S28,24,(S28-R28)/100))) -> 8 | U28: 41.6 | AC28: 1.6 | AD28: 4 | AE28: 4 | AF28: 1.6 | AG28: 4 | AH28: 1.6 | AI28: 4
A29: =A28+0.001 -> 132.023 | B29: Accepted | C29: NA | D29: Kiwi Power Ltd | E29: KIWIE-2 | F29: DNO connection | G29: DSF: Storage (onsite) | H29: 2021-01-01 | I29: 2021-01-31 | J29: 01.01.21 - 31.01.21 (1 months) | K29: As per FFR framework agreement | L29: 1500 | M29: 2300 | N29: 8 | O29: 1500 | P29: 2300 | Q29: 8 | R29: 1500 | S29: 2300 | T29: 8 | U29: 49 | AC29: 1.6 | AD29: 4 | AE29: 4 | AF29: 1.6 | AG29: 4 | AH29: 1.6 | AI29: 4
A30: =A29+0.001 -> 132.024 | B30: Accepted | C30: NA | D30: Kiwi Power Ltd | E30: KIWIDA-1 | F30: DNO connection | G30: DSF: Storage (onsite) | H30: 2020-12-31 | I30: 2021-01-31 | J30: 31.12.20 - 31.01.21 (1 months) | K30: As per FFR framework agreement | L30: 2300 | M30: 700 | N30: 8 | O30: 2300 | P30: 700 | Q30: 8 | R30: 2300 | S30: 700 | T30: 8 | U30: 19 | AC30: 0.8 | AD30: 2 | AE30: 2 | AF30: 0.8 | AG30: 2 | AH30: 0.8 | AI30: 2
A31: =A30+0.001 -> 132.025 | B31: Accepted | C31: NA | D31: Kiwi Power Ltd | E31: KIWIDA-1 | F31: DNO connection | G31: DSF: Storage (onsite) | H31: 2021-01-01 | I31: 2021-01-31 | J31: 01.01.21 - 31.01.21 (1 months) | K31: As per FFR framework agreement | L31: 700 | M31: 1500 | N31: 8 | O31: 700 | P31: 1500 | Q31: 8 | R31: 700 | S31: 1500 | T31: 8 | U31: 20.8 | AC31: 0.8 | AD31: 2 | AE31: 2 | AF31: 0.8 | AG31: 2 | AH31: 0.8 | AI31: 2
A32: 132.026 | B32: Accepted | C32: NA | D32: Kiwi Power Ltd | E32: KIWIDA-1 | F32: DNO connection | G32: DSF: Storage (onsite) | H32: 2021-01-01 | I32: 2021-01-31 | J32: 01.01.21 - 31.01.21 (1 months) | K32: As per FFR framework agreement | O32: 1500 | P32: 2300 | Q32: 8 | R32: 1500 | S32: 2300 | T32: 8 | U32: 24.3 | AC32: 0.8 | AD32: 2 | AE32: 2 | AF32: 0.8 | AG32: 2 | AH32: 0.8 | AI32: 2
A33: 132.027 | B33: Accepted | C33: NA | D33: Kiwi Power Ltd | E33: KIWIE-4 | F33: DNO connection | G33: DSF: Storage (onsite) | H33: 2020-12-31 | I33: 2021-01-31 | J33: 31.12.20 - 31.01.21 (1 months) | K33: As per FFR framework agreement | L33: 2300 | M33: 700 | N33: =IF(L33>M33, (2400-L33+M33)/100, IF(AND(L33="",M33="",L33=M33), "", IF(L33=M33,24,(M33-L33)/100))) -> 8 | O33: 2300 | P33: 700 | Q33: 8 | R33: 2300 | S33: 700 | T33: 8 | U33: 191.1 | AC33: 8.4 | AD33: 21 | AE33: 21 | AF33: 8.4 | AG33: 21 | AH33: 8.4 | AI33: 21
A34: 132.028 | B34: Accepted | C34: NA | D34: Kiwi Power Ltd | E34: KIWIE-4 | F34: DNO connection | G34: DSF: Storage (onsite) | H34: 2021-01-01 | I34: 2021-01-31 | J34: 01.01.21 - 31.01.21 (1 months) | K34: As per FFR framework agreement | L34: 700 | M34: 1500 | N34: 8 | O34: 700 | P34: 1500 | Q34: 8 | R34: 700 | S34: 1500 | T34: 8 | U34: 214.2 | AC34: 8.4 | AD34: 21 | AE34: 21 | AF34: 8.4 | AG34: 21 | AH34: 8.4 | AI34: 21
A35: 132.029 | B35: Accepted | C35: NA | D35: Kiwi Power Ltd | E35: KIWIE-4 | F35: DNO connection | G35: DSF: Storage (onsite) | H35: 2021-01-01 | I35: 2021-01-31 | J35: 01.01.21 - 31.01.21 (1 months) | K35: As per FFR framework agreement | L35: 1500 | M35: 2300 | N35: 8 | O35: 1500 | P35: 2300 | Q35: 8 | R35: 1500 | S35: 2300 | T35: 8 | U35: 252 | AC35: 8.4 | AD35: 21 | AE35: 21 | AF35: 8.4 | AG35: 21 | AH35: 8.4 | AI35: 21
A36: 132.03 | B36: Accepted | C36: NA | D36: EDF Energy Customers Limited | E36: AG-AEDF01 | F36: DNO connection | G36: DSF: Storage (for export) | H36: 2020-12-31 | I36: 2021-01-31 | J36: 31.12.20 - 31.01.21 (1 months) | K36: As per FFR framework agreement | L36: 2300 | M36: 2300 | N36: =IF(L36>M36, (2400-L36+M36)/100, IF(AND(L36="",M36="",L36=M36), "", IF(L36=M36,24,(M36-L36)/100))) -> 24 | O36: 2300 | P36: 2300 | Q36: =IF(O36>P36, (2400-O36+P36)/100, IF(AND(O36="",P36="",O36=P36), "", IF(O36=P36,24,(P36-O36)/100))) -> 24 | R36: 2300 | S36: 2300 | T36: =IF(R36>S36, (2400-R36+S36)/100, IF(AND(R36="",S36="",R36=S36), "", IF(R36=S36,24,(S36-R36)/100))) -> 24 | U36: 74.82 | AC36: 2.4 | AD36: 6 | AE36: 6 | AF36: 2.4 | AG36: 6 | AH36: 2.4 | AI36: 6
A37: 132.031 | B37: Accepted | C37: NA | D37: EDF Energy Customers Limited | E37: AG -GEDF01 | F37: DNO connection | G37: DSF: Storage (for export) | H37: 2020-12-31 | I37: 2021-01-31 | J37: 31.12.20 - 31.01.21 (1 months) | K37: As per FFR framework agreement | L37: 2300 | M37: 2300 | N37: =IF(L37>M37, (2400-L37+M37)/100, IF(AND(L37="",M37="",L37=M37), "", IF(L37=M37,24,(M37-L37)/100))) -> 24 | O37: 2300 | P37: 2300 | Q37: =IF(O37>P37, (2400-O37+P37)/100, IF(AND(O37="",P37="",O37=P37), "", IF(O37=P37,24,(P37-O37)/100))) -> 24 | R37: 2300 | S37: 2300 | T37: =IF(R37>S37, (2400-R37+S37)/100, IF(AND(R37="",S37="",R37=S37), "", IF(R37=S37,24,(S37-R37)/100))) -> 24 | U37: 224 | AC37: 8 | AD37: 20 | AE37: 20 | AF37: 8 | AG37: 20 | AH37: 8 | AI37: 20
A38: 132.032 | B38: Accepted | C38: NA | D38: EDF Energy Customers Limited | E38: AG -GEDF02 | F38: DNO connection | G38: DSF: Storage (for export) | H38: 2020-12-31 | I38: 2021-01-31 | J38: 31.12.20 - 31.01.21 (1 months) | K38: As per FFR framework agreement | L38: 2300 | M38: 2300 | N38: 24 | O38: 2300 | P38: 2300 | Q38: 24 | R38: 2300 | S38: 2300 | T38: 24 | U38: 223 | AC38: 8 | AD38: 20 | AE38: 20 | AF38: 8 | AG38: 20 | AH38: 8 | AI38: 20
A39: 132.033 | B39: Accepted | C39: NA | D39: EDF Energy Customers Limited | E39: EDFE-2 | F39: DNO connection | G39: DSF: Storage (for export) | H39: 2020-12-31 | I39: 2021-01-31 | J39: 31.12.20 - 31.01.21 (1 months) | K39: As per FFR framework agreement | L39: 2300 | M39: 2300 | N39: 24 | O39: 2300 | P39: 2300 | Q39: 24 | R39: 2300 | S39: 2300 | T39: 24 | U39: 98.24 | AC39: 3.2 | AD39: 8 | AE39: 8 | AF39: 3.2 | AG39: 8 | AH39: 3.2 | AI39: 8
A40: 132.034 | B40: Accepted | C40: NA | D40: EDF Energy Customers Limited | E40: EDFE-6 | F40: DNO connection | G40: DSF: Storage (for export) | H40: 2020-12-31 | I40: 2021-01-31 | J40: 31.12.20 - 31.01.21 (1 months) | K40: As per FFR framework agreement | L40: 2300 | M40: 2300 | N40: 24 | O40: 2300 | P40: 2300 | Q40: 24 | R40: 2300 | S40: 2300 | T40: 24 | U40: 85.82 | AC40: 2.8 | AD40: 7 | AE40: 7 | AF40: 2.8 | AG40: 7 | AH40: 2.8 | AI40: 7
A41: 132.035 | B41: Rejected | C41: 2 | D41: EDF Energy Customers Limited | E41: EDFE-7 | F41: DNO connection | G41: DSF: Storage (for export) | H41: 2020-12-31 | I41: 2021-01-31 | J41: 31.12.20 - 31.01.21 (1 months) | K41: As per FFR framework agreement | L41: 2300 | M41: 2300 | N41: 24 | O41: 2300 | P41: 2300 | Q41: 24 | R41: 2300 | S41: 2300 | T41: 24 | U41: 941.29 | AC41: 19.6 | AD41: 49 | AE41: 49 | AF41: 19.6 | AG41: 49 | AH41: 15.6 | AI41: 39
A42: 132.036 | B42: Rejected | C42: 2 | D42: Flexitricity Limited | E42: AG-EFLX01 | F42: DNO connection | G42: DSF: Storage (for export) | H42: 2020-12-31 | I42: 2021-01-31 | J42: 31.12.20 - 31.01.21 (1 months) | K42: As per FFR framework agreement | L42: 2300 | M42: 2300 | N42: =IF(L42>M42, (2400-L42+M42)/100, IF(AND(L42="",M42="",L42=M42), "", IF(L42=M42,24,(M42-L42)/100))) -> 24 | O42: 2300 | P42: 2300 | Q42: =IF(O42>P42, (2400-O42+P42)/100, IF(AND(O42="",P42="",O42=P42), "", IF(O42=P42,24,(P42-O42)/100))) -> 24 | R42: 2300 | S42: 2300 | T42: =IF(R42>S42, (2400-R42+S42)/100, IF(AND(R42="",S42="",R42=S42), "", IF(R42=S42,24,(S42-R42)/100))) -> 24 | U42: 382.28 | X42: YES | AC42: 7.6 | AD42: 19 | AE42: 19 | AF42: 7.6 | AG42: 19 | AH42: 7.6 | AI42: 19
A43: 132.037 | B43: Rejected | C43: 2 | D43: Flexitricity Limited | E43: AG-BFLX01 | F43: DNO connection | G43: DSF: Storage (for export) | H43: 2020-12-31 | I43: 2021-01-31 | J43: 31.12.20 - 31.01.21 (1 months) | K43: As per FFR framework agreement | L43: 2300 | M43: 2300 | N43: =IF(L43>M43, (2400-L43+M43)/100, IF(AND(L43="",M43="",L43=M43), "", IF(L43=M43,24,(M43-L43)/100))) -> 24 | O43: 2300 | P43: 2300 | Q43: =IF(O43>P43, (2400-O43+P43)/100, IF(AND(O43="",P43="",O43=P43), "", IF(O43=P43,24,(P43-O43)/100))) -> 24 | R43: 2300 | S43: 2300 | T43: =IF(R43>S43, (2400-R43+S43)/100, IF(AND(R43="",S43="",R43=S43), "", IF(R43=S43,24,(S43-R43)/100))) -> 24 | U43: 142.59 | X43: YES | AC43: 2.8 | AD43: 7 | AE43: 7 | AF43: 2.8 | AG43: 7 | AH43: 2.8 | AI43: 7
A44: 132.038 | B44: Accepted | C44: NA | D44: Flexitricity Limited | E44: AG-FLX00L | F44: DNO connection | G44: DSF: Storage (for export) | H44: 2020-12-31 | I44: 2021-01-31 | J44: 31.12.20 - 31.01.21 (1 months) | K44: As per FFR framework agreement | L44: 2300 | M44: 700 | N44: 8 | O44: 2300 | P44: 700 | Q44: 8 | R44: 2300 | S44: 700 | T44: 8 | U44: 37.68 | X44: YES | AC44: 1.6 | AD44: 4 | AE44: 4 | AF44: 1.6 | AG44: 4 | AH44: 1.6 | AI44: 4
A45: 132.039 | B45: Accepted | C45: NA | D45: Flexitricity Limited | E45: AG-FLX00L | F45: DNO connection | G45: DSF: Storage (for export) | H45: 2021-01-01 | I45: 2021-01-31 | J45: =IFERROR(TEXT(H45,"DD.MM.YY")&" - "&TEXT(I45,"DD.MM.YY")&" ("&DATEDIF(H45,I45+1,"m")&" months)","Tender End Date is Before Start Date") -> 01.01.21 - 31.01.21 (1 months) | K45: As per FFR framework agreement | L45: 700 | M45: 1500 | N45: 8 | O45: 700 | P45: 1500 | Q45: 8 | R45: 700 | S45: 1500 | T45: 8 | U45: 41.92 | X45: YES | AC45: 1.6 | AD45: 4 | AE45: 4 | AF45: 1.6 | AG45: 4 | AH45: 1.6 | AI45: 4
A46: 132.04 | B46: Accepted | C46: NA | D46: Flexitricity Limited | E46: AG-FLX00L | F46: DNO connection | G46: DSF: Storage (for export) | H46: 2021-01-01 | I46: 2021-01-31 | J46: =IFERROR(TEXT(H46,"DD.MM.YY")&" - "&TEXT(I46,"DD.MM.YY")&" ("&DATEDIF(H46,I46+1,"m")&" months)","Tender End Date is Before Start Date") -> 01.01.21 - 31.01.21 (1 months) | K46: As per FFR framework agreement | L46: 1500 | M46: 2300 | N46: 8 | O46: 1500 | P46: 2300 | Q46: 8 | R46: 1500 | S46: 2300 | T46: 8 | U46: 60 | X46: YES | AC46: 1.6 | AD46: 4 | AE46: 4 | AF46: 1.6 | AG46: 4 | AH46: 1.6 | AI46: 4
A47: 132.041 | B47: Rejected | C47: 2 | D47: Flexitricity Limited | E47: AG-MFLX02 | F47: DNO connection | G47: DSF: Storage (for export) | H47: 2020-12-31 | I47: 2021-01-31 | J47: =IFERROR(TEXT(H47,"DD.MM.YY")&" - "&TEXT(I47,"DD.MM.YY")&" ("&DATEDIF(H47,I47+1,"m")&" months)","Tender End Date is Before Start Date") -> 31.12.20 - 31.01.21 (1 months) | K47: As per FFR framework agreement | L47: 2300 | M47: 2300 | N47: 24 | O47: 2300 | P47: 2300 | Q47: 24 | R47: 2300 | S47: 2300 | T47: 24 | U47: 952.56 | X47: YES | AC47: 19.96 | AD47: 49 | AE47: 49 | AF47: 19.96 | AG47: 49 | AH47: 19.96 | AI47: 49
A48: 132.042 | B48: Accepted | C48: NA | D48: npower | E48: NPFRD-1 | F48: DNO connection | G48: Battery | H48: 2020-12-31 | I48: 2021-01-31 | J48: =IFERROR(TEXT(H48,"DD.MM.YY")&" - "&TEXT(I48,"DD.MM.YY")&" ("&DATEDIF(H48,I48+1,"m")&" months)","Tender End Date is Before Start Date") -> 31.12.20 - 31.01.21 (1 months) | L48: 2300 | M48: 700 | N48: =IF(L48>M48, (2400-L48+M48)/100, IF(AND(L48="",M48="",L48=M48), "", IF(L48=M48,24,(M48-L48)/100))) -> 8 | O48: 2300 | P48: 700 | Q48: =IF(O48>P48, (2400-O48+P48)/100, IF(AND(O48="",P48="",O48=P48), "", IF(O48=P48,24,(P48-O48)/100))) -> 8 | R48: 2300 | S48: 700 | T48: =IF(R48>S48, (2400-R48+S48)/100, IF(AND(R48="",S48="",R48=S48), "", IF(R48=S48,24,(S48-R48)/100))) -> 8 | U48: 37.6 | AC48: 1.6 | AD48: 4 | AE48: 4 | AF48: 1.6 | AG48: 4 | AH48: 1.6 | AI48: 4 | AL48: A
A49: 132.043 | B49: Rejected | C49: 4 | D49: npower | E49: NPFRD-1 | F49: DNO connection | G49: Battery | H49: 2021-01-01 | I49: 2021-01-31 | J49: 01.01.21 - 31.01.21 (1 months) | L49: 700 | M49: 1500 | N49: =IF(L49>M49, (2400-L49+M49)/100, IF(AND(L49="",M49="",L49=M49), "", IF(L49=M49,24,(M49-L49)/100))) -> 8 | O49: 700 | P49: 1500 | Q49: =IF(O49>P49, (2400-O49+P49)/100, IF(AND(O49="",P49="",O49=P49), "", IF(O49=P49,24,(P49-O49)/100))) -> 8 | R49: 700 | S49: 1500 | T49: =IF(R49>S49, (2400-R49+S49)/100, IF(AND(R49="",S49="",R49=S49), "", IF(R49=S49,24,(S49-R49)/100))) -> 8 | U49: 43 | AC49: 1.6 | AD49: 4 | AE49: 4 | AF49: 1.6 | AG49: 4 | AH49: 1.6 | AI49: 4 | AL49: B
A50: 132.044 | B50: Rejected | C50: 4 | D50: npower | E50: NPFRD-1 | F50: DNO connection | G50: Battery | H50: 2021-01-01 | I50: 2021-01-31 | J50: =IFERROR(TEXT(H50,"DD.MM.YY")&" - "&TEXT(I50,"DD.MM.YY")&" ("&DATEDIF(H50,I50+1,"m")&" months)","Tender End Date is Before Start Date") -> 01.01.21 - 31.01.21 (1 months) | L50: 1900 | M50: 2300 | N50: 4 | O50: 1900 | P50: 2300 | Q50: 4 | R50: 1900 | S50: 2300 | T50: 4 | U50: 43 | AC50: 1.6 | AD50: 4 | AE50: 4 | AF50: 1.6 | AG50: 4 | AH50: 1.6 | AI50: 4 | AL50: B
A51: 132.045 | B51: Accepted | C51: NA | D51: npower | E51: NPFRD-1 | F51: DNO connection | G51: Battery | H51: 2021-01-01 | I51: 2021-01-31 | J51: =IFERROR(TEXT(H51,"DD.MM.YY")&" - "&TEXT(I51,"DD.MM.YY")&" ("&DATEDIF(H51,I51+1,"m")&" months)","Tender End Date is Before Start Date") -> 01.01.21 - 31.01.21 (1 months) | L51: 700 | M51: 2300 | N51: 16 | O51: 700 | P51: 2300 | Q51: 16 | R51: 700 | S51: 2300 | T51: 16 | U51: 52 | AC51: 1.6 | AD51: 4 | AE51: 4 | AF51: 1.6 | AG51: 4 | AH51: 1.6 | AI51: 4 | AL51: C | AM51: Mutually exclusive from B
A52: 132.046 | B52: Rejected | C52: 2 | D52: First Hydro Company | E52: DINO-2 | F52: TO connection | G52: Hydro | H52: 2021-01-01 | I52: 2021-01-31 | J52: 01.01.21 - 31.01.21 (1 months) | K52: As per FFR framework agreement | L52: 1500 | M52: 1900 | N52: =IF(L52>M52, (2400-L52+M52)/100, IF(AND(L52="",M52="",L52=M52), "", IF(L52=M52,24,(M52-L52)/100))) -> 4 | O52: 1500 | P52: 1900 | Q52: =IF(O52>P52, (2400-O52+P52)/100, IF(AND(O52="",P52="",O52=P52), "", IF(O52=P52,24,(P52-O52)/100))) -> 4 | R52: 1500 | S52: 1900 | T52: =IF(R52>S52, (2400-R52+S52)/100, IF(AND(R52="",S52="",R52=S52), "", IF(R52=S52,24,(S52-R52)/100))) -> 4 | U52: 5000 | V52: 0 | X52: NO | Y52: 150 | Z52: 150 | AA52: 288 | AB52: 150 | AC52: 68 | AD52: 170 | AE52: 170 | AF52: 107 | AG52: 170 | AH52: 0 | AI52: 0
A53: 132.047 | B53: Accepted | C53: NA | D53: Limejump Energy Ltd | E53: AG-ELIM03 | F53: TO connection | G53: DSF: Storage (for export) | H53: 2020-12-31 | I53: 2021-01-31 | J53: 31.12.20 - 31.01.21 (1 months) | K53: As per FFR framework agreement | L53: 2300 | M53: 700 | N53: =IF(L53>M53, (2400-L53+M53)/100, IF(AND(L53="",M53="",L53=M53), "", IF(L53=M53,24,(M53-L53)/100))) -> 8 | O53: 2300 | P53: 700 | Q53: =IF(O53>P53, (2400-O53+P53)/100, IF(AND(O53="",P53="",O53=P53), "", IF(O53=P53,24,(P53-O53)/100))) -> 8 | R53: 2300 | S53: 700 | T53: =IF(R53>S53, (2400-R53+S53)/100, IF(AND(R53="",S53="",R53=S53), "", IF(R53=S53,24,(S53-R53)/100))) -> 8 | U53: 179.55 | AC53: 7.6 | AD53: 19 | AE53: 19 | AF53: 7.6 | AG53: 19 | AH53: 7.6 | AI53: 19 | AP53: H for 30 minutes only
A54: 132.048 | B54: Accepted | C54: NA | D54: Limejump Energy Ltd | E54: AG-ELIM03 | F54: TO connection | G54: DSF: Storage (for export) | H54: 2021-01-01 | I54: 2021-01-31 | J54: 01.01.21 - 31.01.21 (1 months) | K54: As per FFR framework agreement | L54: 700 | M54: 1500 | N54: =IF(L54>M54, (2400-L54+M54)/100, IF(AND(L54="",M54="",L54=M54), "", IF(L54=M54,24,(M54-L54)/100))) -> 8 | O54: 700 | P54: 1500 | Q54: =IF(O54>P54, (2400-O54+P54)/100, IF(AND(O54="",P54="",O54=P54), "", IF(O54=P54,24,(P54-O54)/100))) -> 8 | R54: 700 | S54: 1500 | T54: =IF(R54>S54, (2400-R54+S54)/100, IF(AND(R54="",S54="",R54=S54), "", IF(R54=S54,24,(S54-R54)/100))) -> 8 | U54: 195.7 | AC54: 7.6 | AD54: 19 | AE54: 19 | AF54: 7.6 | AG54: 19 | AH54: 7.6 | AI54: 19 | AP54: H for 30 minutes only
A55: 132.049 | B55: Accepted | C55: NA | D55: Limejump Energy Ltd | E55: AG-ELIM03 | F55: TO connection | G55: DSF: Storage (for export) | H55: 2021-01-01 | I55: 2021-01-31 | J55: 01.01.21 - 31.01.21 (1 months) | K55: As per FFR framework agreement | L55: 1500 | M55: 2300 | N55: 8 | O55: 1500 | P55: 2300 | Q55: 8 | R55: 1500 | S55: 2300 | T55: 8 | U55: 230.85 | AC55: 7.6 | AD55: 19 | AE55: 19 | AF55: 7.6 | AG55: 19 | AH55: 7.6 | AI55: 19 | AP55: H for 30 minutes only
A56: =A55+0.004 -> 132.053 | B56: Rejected | C56: 4 | D56: Limejump Ltd | E56: LJDYP-4 | F56: DNO connection | G56: DSF: Storage (for export) | H56: 2021-01-01 | I56: 2021-01-31 | J56: 01.01.21 - 31.01.21 (1 months) | K56: As per FFR framework agreement | L56: 700 | M56: 1500 | N56: 8 | O56: 700 | P56: 1500 | Q56: 8 | R56: 700 | S56: 1500 | T56: 8 | U56: 47.96 | AC56: 1.6 | AD56: 4 | AE56: 4 | AF56: 1.6 | AG56: 4 | AH56: 1.6 | AI56: 4 | AL56: D | AM56: Cannot be accepted with F | AP56: H for 30 minutes only
A57: 132.054 | B57: Rejected | C57: 4 | D57: Limejump Ltd | E57: LJDYP-4 | F57: DNO connection | G57: DSF: Storage (for export) | H57: 2021-01-01 | I57: 2021-01-31 | J57: 01.01.21 - 31.01.21 (1 months) | K57: As per FFR framework agreement | L57: 1500 | M57: 2300 | N57: 8 | O57: 1500 | P57: 2300 | Q57: 8 | R57: 1500 | S57: 2300 | T57: 8 | U57: 49.96 | AC57: 1.6 | AD57: 4 | AE57: 4 | AF57: 1.6 | AG57: 4 | AH57: 1.6 | AI57: 4 | AL57: E | AM57: Cannot be accepted with F | AP57: H for 30 minutes only
A58: 132.055 | B58: Accepted | C58: NA | D58: Limejump Ltd | E58: LJDYP-4 | F58: DNO connection | G58: DSF: Storage (for export) | H58: 2021-01-01 | I58: 2021-01-31 | J58: 01.01.21 - 31.01.21 (1 months) | K58: As per FFR framework agreement | L58: 700 | M58: 2300 | N58: 16 | O58: 700 | P58: 2300 | Q58: 16 | R58: 700 | S58: 2300 | T58: 16 | U58: 48.8 | AC58: 1.6 | AD58: 4 | AE58: 4 | AF58: 1.6 | AG58: 4 | AH58: 1.6 | AI58: 4 | AL58: F | AM58: Cannot be accepted with D or E | AP58: H for 30 minutes only
A59: 132.056 | B59: Accepted | C59: NA | D59: Limejump Energy Ltd | E59: AG-BLIM02 | F59: TO connection | G59: DSF: Storage (for export) | H59: 2020-12-31 | I59: 2021-01-31 | J59: 31.12.20 - 31.01.21 (1 months) | K59: As per FFR framework agreement | L59: 2300 | M59: 700 | N59: 8 | O59: 2300 | P59: 700 | Q59: 8 | R59: 2300 | S59: 700 | T59: 8 | U59: 119.9 | AC59: 4.4 | AD59: 11 | AE59: 11 | AF59: 4.4 | AG59: 11 | AH59: 4.4 | AI59: 11 | AP59: H for 30 minutes only
A60: 132.057 | B60: Accepted | C60: NA | D60: Limejump Energy Ltd | E60: AG-BLIM02 | F60: TO connection | G60: DSF: Storage (for export) | H60: 2021-01-01 | I60: 2021-01-31 | J60: 01.01.21 - 31.01.21 (1 months) | K60: As per FFR framework agreement | L60: 700 | M60: 1500 | N60: 8 | O60: 700 | P60: 1500 | Q60: 8 | R60: 700 | S60: 1500 | T60: 8 | U60: 112 | AC60: 4 | AD60: 10 | AE60: 10 | AF60: 4 | AG60: 10 | AH60: 4 | AI60: 10 | AP60: H for 30 minutes only
A61: 132.058 | B61: Accepted | C61: NA | D61: Limejump Energy Ltd | E61: AG-BLIM02 | F61: TO connection | G61: DSF: Storage (for export) | H61: 2021-01-01 | I61: 2021-01-31 | J61: 01.01.21 - 31.01.21 (1 months) | K61: As per FFR framework agreement | L61: 1500 | M61: 2300 | N61: 8 | O61: 1500 | P61: 2300 | Q61: 8 | R61: 1500 | S61: 2300 | T61: 8 | U61: 124 | AC61: 4 | AD61: 10 | AE61: 10 | AF61: 4 | AG61: 10 | AH61: 4 | AI61: 10 | AP61: H for 30 minutes only
A62: 132.059 | B62: Accepted | C62: NA | D62: Limejump Energy Ltd | E62: AG-FLIM01 | F62: TO connection | G62: DSF: Storage (for export) | H62: 2020-12-31 | I62: 2021-01-31 | J62: 31.12.20 - 31.01.21 (1 months) | K62: As per FFR framework agreement | L62: 2300 | M62: 700 | N62: 8 | O62: 2300 | P62: 700 | Q62: 8 | R62: 2300 | S62: 700 | T62: 8 | U62: 77.98 | AC62: 2.8 | AD62: 7 | AE62: 7 | AF62: 2.8 | AG62: 7 | AH62: 2.8 | AI62: 7 | AP62: H for 30 minutes only
A63: =A62+0.001 -> 132.06 | B63: Accepted | C63: NA | D63: Limejump Energy Ltd | E63: AG-FLIM01 | F63: TO connection | G63: DSF: Storage (for export) | H63: 2021-01-01 | I63: 2021-01-31 | J63: 01.01.21 - 31.01.21 (1 months) | K63: As per FFR framework agreement | L63: 700 | M63: 1500 | N63: 8 | O63: 700 | P63: 1500 | Q63: 8 | R63: 700 | S63: 1500 | T63: 8 | U63: 80.08 | AC63: 2.8 | AD63: 7 | AE63: 7 | AF63: 2.8 | AG63: 7 | AH63: 2.8 | AI63: 7 | AP63: H for 30 minutes only
A64: =A63+0.001 -> 132.061 | B64: Accepted | C64: NA | D64: Limejump Energy Ltd | E64: AG-FLIM01 | F64: TO connection | G64: DSF: Storage (for export) | H64: 2021-01-01 | I64: 2021-01-31 | J64: 01.01.21 - 31.01.21 (1 months) | K64: As per FFR framework agreement | L64: 1500 | M64: 2300 | N64: 8 | O64: 1500 | P64: 2300 | Q64: 8 | R64: 1500 | S64: 2300 | T64: 8 | U64: 88.48 | AC64: 2.8 | AD64: 7 | AE64: 7 | AF64: 2.8 | AG64: 7 | AH64: 2.8 | AI64: 7 | AP64: H for 30 minutes only
A65: =A62+0.003 -> 132.062 | B65: Accepted | C65: NA | D65: Limejump Energy Ltd | E65: AG-GLIM01 | F65: TO connection | G65: DSF: Storage (for export) | H65: 2020-12-31 | I65: 2021-01-31 | J65: =IFERROR(TEXT(H65,"DD.MM.YY")&" - "&TEXT(I65,"DD.MM.YY")&" ("&DATEDIF(H65,I65+1,"m")&" months)","Tender End Date is Before Start Date") -> 31.12.20 - 31.01.21 (1 months) | K65: As per FFR framework agreement | L65: 2300 | M65: 700 | N65: 8 | O65: 2300 | P65: 700 | Q65: 8 | R65: 2300 | S65: 700 | T65: 8 | U65: 21.84 | AC65: 0.8 | AD65: 2 | AE65: 2 | AF65: 0.8 | AG65: 2 | AH65: 0.8 | AI65: 2 | AP65: H for 30 minutes only
A66: =A65+0.001 -> 132.063 | B66: Accepted | C66: NA | D66: Limejump Energy Ltd | E66: AG-GLIM01 | F66: TO connection | G66: DSF: Storage (for export) | H66: 2021-01-01 | I66: 2021-01-31 | J66: =IFERROR(TEXT(H66,"DD.MM.YY")&" - "&TEXT(I66,"DD.MM.YY")&" ("&DATEDIF(H66,I66+1,"m")&" months)","Tender End Date is Before Start Date") -> 01.01.21 - 31.01.21 (1 months) | K66: As per FFR framework agreement | L66: 700 | M66: 1500 | N66: 8 | O66: 700 | P66: 1500 | Q66: 8 | R66: 700 | S66: 1500 | T66: 8 | U66: 22.44 | AC66: 0.8 | AD66: 2 | AE66: 2 | AF66: 0.8 | AG66: 2 | AH66: 0.8 | AI66: 2 | AP66: H for 30 minutes only
A67: =A66+0.001 -> 132.064 | B67: Accepted | C67: NA | D67: Limejump Energy Ltd | E67: AG-GLIM01 | F67: TO connection | G67: DSF: Storage (for export) | H67: 2021-01-01 | I67: 2021-01-31 | J67: =IFERROR(TEXT(H67,"DD.MM.YY")&" - "&TEXT(I67,"DD.MM.YY")&" ("&DATEDIF(H67,I67+1,"m")&" months)","Tender End Date is Before Start Date") -> 01.01.21 - 31.01.21 (1 months) | K67: As per FFR framework agreement | L67: 1500 | M67: 2300 | N67: 8 | O67: 1500 | P67: 2300 | Q67: 8 | R67: 1500 | S67: 2300 | T67: 8 | U67: 24.84 | AC67: 0.8 | AD67: 2 | AE67: 2 | AF67: 0.8 | AG67: 2 | AH67: 0.8 | AI67: 2 | AP67: H for 30 minutes only
A68: =A67+0.001 -> 132.065 | B68: Accepted | C68: NA | D68: Limejump Energy Ltd | E68: AG-HLIM01 | F68: TO connection | G68: DSF: Storage (for export) | H68: 2020-12-31 | I68: 2021-01-31 | J68: 31.12.20 - 31.01.21 (1 months) | K68: As per FFR framework agreement | L68: 2300 | M68: 700 | N68: 8 | O68: 2300 | P68: 700 | Q68: 8 | R68: 2300 | S68: 700 | T68: 8 | U68: 32.85 | AC68: 1.2 | AD68: 3 | AE68: 3 | AF68: 1.2 | AG68: 3 | AH68: 1.2 | AI68: 3 | AP68: H for 30 minutes only
A69: =A68+0.001 -> 132.066 | B69: Accepted | C69: NA | D69: Limejump Energy Ltd | E69: AG-HLIM01 | F69: TO connection | G69: DSF: Storage (for export) | H69: 2021-01-01 | I69: 2021-01-31 | J69: =IFERROR(TEXT(H69,"DD.MM.YY")&" - "&TEXT(I69,"DD.MM.YY")&" ("&DATEDIF(H69,I69+1,"m")&" months)","Tender End Date is Before Start Date") -> 01.01.21 - 31.01.21 (1 months) | K69: As per FFR framework agreement | L69: 700 | M69: 1500 | N69: 8 | O69: 700 | P69: 1500 | Q69: 8 | R69: 700 | S69: 1500 | T69: 8 | U69: 33.75 | AC69: 1.2 | AD69: 3 | AE69: 3 | AF69: 1.2 | AG69: 3 | AH69: 1.2 | AI69: 3 | AP69: H for 30 minutes only
A70: 132.067 | B70: Accepted | C70: NA | D70: Limejump Energy Ltd | E70: AG-HLIM01 | F70: TO connection | G70: DSF: Storage (for export) | H70: 2021-01-01 | I70: 2021-01-31 | J70: 01.01.21 - 31.01.21 (1 months) | K70: As per FFR framework agreement | L70: 1500 | M70: 2300 | N70: 8 | O70: 1500 | P70: 2300 | Q70: 8 | R70: 1500 | S70: 2300 | T70: 8 | U70: 37.35 | AC70: 1.2 | AD70: 3 | AE70: 3 | AF70: 1.2 | AG70: 3 | AH70: 1.2 | AI70: 3 | AP70: H for 30 minutes only
A71: 132.068 | B71: Accepted | C71: NA | D71: Limejump Energy Ltd | E71: AG-ELIM02 | F71: TO connection | G71: DSF: Storage (for export) | H71: 2020-12-31 | I71: 2021-01-31 | J71: 31.12.20 - 31.01.21 (1 months) | K71: As per FFR framework agreement | L71: 2300 | M71: 700 | N71: 8 | O71: 2300 | P71: 700 | Q71: 8 | R71: 2300 | S71: 700 | T71: 8 | U71: 33.15 | AC71: 1.2 | AD71: 3 | AE71: 3 | AF71: 1.2 | AG71: 3 | AH71: 1.2 | AI71: 3 | AP71: H for 30 minutes only
A72: 132.069 | B72: Accepted | C72: NA | D72: Limejump Energy Ltd | E72: AG-ELIM02 | F72: TO connection | G72: DSF: Storage (for export) | H72: 2021-01-01 | I72: 2021-01-31 | J72: 01.01.21 - 31.01.21 (1 months) | K72: As per FFR framework agreement | L72: 700 | M72: 1500 | N72: 8 | O72: 700 | P72: 1500 | Q72: 8 | R72: 700 | S72: 1500 | T72: 8 | U72: 34.05 | AC72: 1.2 | AD72: 3 | AE72: 3 | AF72: 1.2 | AG72: 3 | AH72: 1.2 | AI72: 3 | AP72: H for 30 minutes only
A73: 132.07 | B73: Accepted | C73: NA | D73: Limejump Energy Ltd | E73: AG-ELIM02 | F73: TO connection | G73: DSF: Storage (for export) | H73: 2021-01-01 | I73: 2021-01-31 | J73: 01.01.21 - 31.01.21 (1 months) | K73: As per FFR framework agreement | L73: 1500 | M73: 2300 | N73: 8 | O73: 1500 | P73: 2300 | Q73: 8 | R73: 1500 | S73: 2300 | T73: 8 | U73: 37.65 | AC73: 1.2 | AD73: 3 | AE73: 3 | AF73: 1.2 | AG73: 3 | AH73: 1.2 | AI73: 3 | AP73: H for 30 minutes only
A74: 132.071 | B74: Accepted | C74: NA | D74: Limejump Ltd | E74: LJDYN-2 | F74: DNO connection | G74: DSF: Storage (for export) | H74: 2020-12-31 | I74: 2021-01-31 | J74: 31.12.20 - 31.01.21 (1 months) | K74: As per FFR framework agreement | L74: 2300 | M74: 700 | N74: 8 | O74: 2300 | P74: 700 | Q74: 8 | R74: 2300 | S74: 700 | T74: 8 | U74: 56 | AC74: 2 | AD74: 5 | AE74: 5 | AF74: 2 | AG74: 5 | AH74: 2 | AI74: 5 | AP74: H for 30 minutes only
A75: 132.072 | B75: Accepted | C75: NA | D75: Limejump Ltd | E75: LJDYN-2 | F75: DNO connection | G75: DSF: Storage (for export) | H75: 2021-01-01 | I75: 2021-01-31 | J75: 01.01.21 - 31.01.21 (1 months) | K75: As per FFR framework agreement | L75: 700 | M75: 1500 | N75: 8 | O75: 700 | P75: 1500 | Q75: 8 | R75: 700 | S75: 1500 | T75: 8 | U75: 57.5 | AC75: 2 | AD75: 5 | AE75: 5 | AF75: 2 | AG75: 5 | AH75: 2 | AI75: 5 | AP75: H for 30 minutes only
A76: =A75+0.001 -> 132.073 | B76: Accepted | C76: NA | D76: Limejump Ltd | E76: LJDYN-2 | F76: DNO connection | G76: DSF: Storage (for export) | H76: 2021-01-01 | I76: 2021-01-31 | J76: 01.01.21 - 31.01.21 (1 months) | K76: As per FFR framework agreement | L76: 1500 | M76: 2300 | N76: 8 | O76: 1500 | P76: 2300 | Q76: 8 | R76: 1500 | S76: 2300 | T76: 8 | U76: 63.5 | AC76: 2 | AD76: 5 | AE76: 5 | AF76: 2 | AG76: 5 | AH76: 2 | AI76: 5 | AP76: H for 30 minutes only
A77: 132.074 | B77: Accepted | C77: NA | D77: Upside Energy | E77: UPEN-2 | F77: DNO connection | G77: DSF: Storage (onsite) | H77: 2020-12-31 | I77: 2021-01-31 | J77: 31.12.20 - 31.01.21 (1 months) | K77: as per FFR framework agreement | L77: 2300 | M77: 700 | N77: =IF(L77>M77, (2400-L77+M77)/100, IF(AND(L77="",M77="",L77=M77), "", IF(L77=M77,24,(M77-L77)/100))) -> 8 | O77: 2300 | P77: 700 | Q77: =IF(O77>P77, (2400-O77+P77)/100, IF(AND(O77="",P77="",O77=P77), "", IF(O77=P77,24,(P77-O77)/100))) -> 8 | R77: 2300 | S77: 700 | T77: =IF(R77>S77, (2400-R77+S77)/100, IF(AND(R77="",S77="",R77=S77), "", IF(R77=S77,24,(S77-R77)/100))) -> 8 | U77: 9.05 | AC77: 0.4 | AD77: 1 | AE77: 1 | AF77: 0.4 | AG77: 1 | AH77: 0.4 | AI77: 1
A78: 132.075 | B78: Accepted | C78: NA | D78: Upside Energy | E78: UPEN-2 | F78: DNO connection | G78: DSF: Storage (onsite) | H78: 2021-01-01 | I78: 2021-01-31 | J78: 01.01.21 - 31.01.21 (1 months) | K78: as per FFR framework agreement | L78: 700 | M78: 1100 | N78: =IF(L78>M78, (2400-L78+M78)/100, IF(AND(L78="",M78="",L78=M78), "", IF(L78=M78,24,(M78-L78)/100))) -> 4 | O78: 700 | P78: 1100 | Q78: =IF(O78>P78, (2400-O78+P78)/100, IF(AND(O78="",P78="",O78=P78), "", IF(O78=P78,24,(P78-O78)/100))) -> 4 | R78: 700 | S78: 1100 | T78: =IF(R78>S78, (2400-R78+S78)/100, IF(AND(R78="",S78="",R78=S78), "", IF(R78=S78,24,(S78-R78)/100))) -> 4 | U78: 8.8 | AC78: 0.4 | AD78: 1 | AE78: 1 | AF78: 0.4 | AG78: 1 | AH78: 0.4 | AI78: 1
A79: 132.076 | B79: Accepted | C79: NA | D79: Open Energi Limited | E79: OPEN-1 | F79: DNO connection | G79: DSF: Load response | H79: 2020-12-31 | I79: 2021-01-31 | J79: 31.12.20 - 31.01.21 (1 months) | K79: As per FFR framework agreement | L79: 2300 | M79: 700 | N79: =IF(L79>M79, (2400-L79+M79)/100, IF(AND(L79="",M79="",L79=M79), "", IF(L79=M79,24,(M79-L79)/100))) -> 8 | O79: 2300 | P79: 700 | Q79: =IF(O79>P79, (2400-O79+P79)/100, IF(AND(O79="",P79="",O79=P79), "", IF(O79=P79,24,(P79-O79)/100))) -> 8 | R79: 2300 | S79: 700 | T79: =IF(R79>S79, (2400-R79+S79)/100, IF(AND(R79="",S79="",R79=S79), "", IF(R79=S79,24,(S79-R79)/100))) -> 8 | U79: 15.9 | AC79: 0.8 | AD79: 2 | AE79: 2 | AF79: 0.8 | AG79: 2 | AH79: 0.8 | AI79: 2 | AL79: A
A80: 132.077 | B80: Accepted | C80: NA | D80: Open Energi Limited | E80: OPEN-1 | F80: DNO connection | G80: DSF: Load response | H80: 2021-01-01 | I80: 2021-01-31 | J80: 01.01.21 - 31.01.21 (1 months) | K80: As per FFR framework agreement | L80: 700 | M80: 1500 | N80: =IF(L80>M80, (2400-L80+M80)/100, IF(AND(L80="",M80="",L80=M80), "", IF(L80=M80,24,(M80-L80)/100))) -> 8 | O80: 700 | P80: 1500 | Q80: =IF(O80>P80, (2400-O80+P80)/100, IF(AND(O80="",P80="",O80=P80), "", IF(O80=P80,24,(P80-O80)/100))) -> 8 | R80: 700 | S80: 1500 | T80: =IF(R80>S80, (2400-R80+S80)/100, IF(AND(R80="",S80="",R80=S80), "", IF(R80=S80,24,(S80-R80)/100))) -> 8 | U80: 17.9 | AC80: 0.8 | AD80: 2 | AE80: 2 | AF80: 0.8 | AG80: 2 | AH80: 0.8 | AI80: 2 | AL80: B
A81: 132.078 | B81: Accepted | C81: NA | D81: Open Energi Limited | E81: OPEN-1 | F81: DNO connection | G81: DSF: Load response | H81: 2021-01-01 | I81: 2021-01-31 | J81: 01.01.21 - 31.01.21 (1 months) | K81: As per FFR framework agreement | L81: 1900 | M81: 2300 | N81: 4 | O81: 1500 | P81: 2300 | Q81: 8 | R81: 1500 | S81: 2300 | T81: 8 | U81: 19.7 | AC81: 0.8 | AD81: 2 | AE81: 2 | AF81: 0.8 | AG81: 2 | AH81: 0.8 | AI81: 2 | AL81: C
A82: 132.079 | B82: Accepted | C82: NA | D82: Open Energi Limited | E82: OPEN-2 | F82: DNO connection | G82: DSF: Storage (onsite) | H82: 2020-12-31 | I82: 2021-01-31 | J82: 31.12.20 - 31.01.21 (1 months) | K82: As per FFR framework agreement | L82: 2300 | M82: 700 | N82: 8 | O82: 2300 | P82: 700 | Q82: 8 | R82: 2300 | S82: 700 | T82: 8 | U82: 28.35 | AC82: 1.2 | AD82: 3 | AE82: 3 | AF82: 1.2 | AG82: 3 | AH82: 1.2 | AI82: 3 | AL82: D
A83: 132.08 | B83: Accepted | C83: NA | D83: Open Energi Limited | E83: OPEN-2 | F83: DNO connection | G83: DSF: Storage (onsite) | H83: 2021-01-01 | I83: 2021-01-31 | J83: 01.01.21 - 31.01.21 (1 months) | K83: As per FFR framework agreement | L83: 700 | M83: 1500 | N83: 8 | O83: 700 | P83: 2300 | Q83: 16 | R83: 700 | S83: 2300 | T83: 16 | U83: 32.85 | AC83: 1.2 | AD83: 3 | AE83: 3 | AF83: 1.2 | AG83: 3 | AH83: 1.2 | AI83: 3 | AL83: E
A84: 132.081 | B84: Rejected | C84: 2 | D84: Open Energi Limited | E84: OPEN-2 | F84: DNO connection | G84: DSF: Storage (onsite) | H84: 2021-01-01 | I84: 2021-01-31 | J84: 01.01.21 - 31.01.21 (1 months) | K84: As per FFR framework agreement | L84: 1500 | M84: 1900 | N84: 4 | U84: 70 | AC84: 0.8 | AD84: 2 | AE84: 2 | AF84: 0.8 | AG84: 2 | AH84: 0.8 | AI84: 2 | AL84: F
A85: 132.082 | B85: Accepted | C85: NA | D85: Open Energi Limited | E85: OPEN-2 | F85: DNO connection | G85: DSF: Storage (onsite) | H85: 2021-01-01 | I85: 2021-01-31 | J85: 01.01.21 - 31.01.21 (1 months) | K85: As per FFR framework agreement | L85: 1900 | M85: 2300 | N85: 4 | U85: 32.85 | AC85: 1.2 | AD85: 3 | AE85: 3 | AF85: 1.2 | AG85: 3 | AH85: 1.2 | AI85: 3 | AL85: E
A86: =A85+0.001 -> 132.083 | B86: Accepted | C86: NA | D86: Peak Gen | E86: PETDAG-1 | F86: DNO connection | G86: DSF: Distributed generation (for export) | H86: 2020-12-31 | I86: 2021-01-31 | J86: 31.12.20 - 31.01.21 (1 months) | K86: As per FFR framework agreement | L86: 2300 | M86: 700 | N86: =IF(L86>M86, (2400-L86+M86)/100, IF(AND(L86="",M86="",L86=M86), "", IF(L86=M86,24,(M86-L86)/100))) -> 8 | O86: 2300 | P86: 700 | Q86: =IF(O86>P86, (2400-O86+P86)/100, IF(AND(O86="",P86="",O86=P86), "", IF(O86=P86,24,(P86-O86)/100))) -> 8 | R86: 2300 | S86: 700 | T86: =IF(R86>S86, (2400-R86+S86)/100, IF(AND(R86="",S86="",R86=S86), "", IF(R86=S86,24,(S86-R86)/100))) -> 8 | U86: 37.99 | AC86: 1.6 | AD86: 4 | AE86: 4 | AF86: 1.6 | AG86: 4 | AH86: 1.6 | AI86: 4
A87: 132.084 | B87: Accepted | C87: NA | D87: Peak Gen | E87: PETDAG-1 | F87: DNO connection | G87: DSF: Distributed generation (for export) | H87: 2021-01-01 | I87: 2021-01-31 | J87: 01.01.21 - 31.01.21 (1 months) | K87: As per FFR framework agreement | L87: 700 | M87: 1500 | N87: =IF(L87>M87, (2400-L87+M87)/100, IF(AND(L87="",M87="",L87=M87), "", IF(L87=M87,24,(M87-L87)/100))) -> 8 | O87: 700 | P87: 1500 | Q87: =IF(O87>P87, (2400-O87+P87)/100, IF(AND(O87="",P87="",O87=P87), "", IF(O87=P87,24,(P87-O87)/100))) -> 8 | R87: 700 | S87: 1500 | T87: =IF(R87>S87, (2400-R87+S87)/100, IF(AND(R87="",S87="",R87=S87), "", IF(R87=S87,24,(S87-R87)/100))) -> 8 | U87: 41.99 | AC87: 1.6 | AD87: 4 | AE87: 4 | AF87: 1.6 | AG87: 4 | AH87: 1.6 | AI87: 4
A88: 132.085 | B88: Accepted | C88: NA | D88: Peak Gen | E88: PETDAG-1 | F88: DNO connection | G88: DSF: Distributed generation (for export) | H88: 2021-01-01 | I88: 2021-01-31 | J88: 01.01.21 - 31.01.21 (1 months) | K88: As per FFR framework agreement | L88: 1500 | M88: 2300 | N88: =IF(L88>M88, (2400-L88+M88)/100, IF(AND(L88="",M88="",L88=M88), "", IF(L88=M88,24,(M88-L88)/100))) -> 8 | O88: 1500 | P88: 2300 | Q88: =IF(O88>P88, (2400-O88+P88)/100, IF(AND(O88="",P88="",O88=P88), "", IF(O88=P88,24,(P88-O88)/100))) -> 8 | R88: 1500 | S88: 2300 | T88: =IF(R88>S88, (2400-R88+S88)/100, IF(AND(R88="",S88="",R88=S88), "", IF(R88=S88,24,(S88-R88)/100))) -> 8 | U88: 49.99 | AC88: 1.6 | AD88: 4 | AE88: 4 | AF88: 1.6 | AG88: 4 | AH88: 1.6 | AI88: 4
A89: 132.086 | B89: Accepted | C89: NA | D89: Statkraft Markets GmbH | E89: SKFT-1 | F89: DNO Connection | G89: DSF: Storage (for export) | H89: 2021-01-01 | I89: 2021-01-31 | J89: 01.01.21 - 31.01.21 (1 months) | K89: As per FFR framework agreement | L89: 700 | M89: 1500 | N89: =IF(L89>M89, (2400-L89+M89)/100, IF(AND(L89="",M89="",L89=M89), "", IF(L89=M89,24,(M89-L89)/100))) -> 8 | O89: 700 | P89: 1500 | Q89: =IF(O89>P89, (2400-O89+P89)/100, IF(AND(O89="",P89="",O89=P89), "", IF(O89=P89,24,(P89-O89)/100))) -> 8 | R89: 700 | S89: 1500 | T89: =IF(R89>S89, (2400-R89+S89)/100, IF(AND(R89="",S89="",R89=S89), "", IF(R89=S89,24,(S89-R89)/100))) -> 8 | U89: 42.25 | AC89: 2 | AD89: 5 | AE89: 5 | AF89: 2 | AG89: 5 | AH89: 2 | AI89: 5
A90: =A89+0.001 -> 132.087 | B90: Accepted | C90: NA | D90: Statkraft Markets GmbH | E90: SKFT-1 | F90: DNO Connection | G90: DSF: Storage (for export) | H90: 2021-01-01 | I90: 2021-01-31 | J90: 01.01.21 - 31.01.21 (1 months) | K90: As per FFR framework agreement | L90: 1500 | M90: 2300 | N90: =IF(L90>M90, (2400-L90+M90)/100, IF(AND(L90="",M90="",L90=M90), "", IF(L90=M90,24,(M90-L90)/100))) -> 8 | O90: 1500 | P90: 2300 | Q90: =IF(O90>P90, (2400-O90+P90)/100, IF(AND(O90="",P90="",O90=P90), "", IF(O90=P90,24,(P90-O90)/100))) -> 8 | R90: 1500 | S90: 2300 | T90: =IF(R90>S90, (2400-R90+S90)/100, IF(AND(R90="",S90="",R90=S90), "", IF(R90=S90,24,(S90-R90)/100))) -> 8 | U90: 35.73 | AC90: 1.2 | AD90: 3 | AE90: 3 | AF90: 1.2 | AG90: 3 | AH90: 1.2 | AI90: 3
A91: 132.088 | B91: Accepted | C91: NA | D91: Statkraft Markets GmbH | E91: AG-MSTK01 | F91: DNO Connection | G91: DSF: Storage (for export) | H91: 2020-12-31 | I91: 2021-01-31 | J91: 31.12.20 - 31.01.21 (1 months) | K91: As per FFR framework agreement | L91: 2300 | M91: 700 | N91: 8 | O91: 2300 | P91: 700 | Q91: 8 | R91: 2300 | S91: 700 | T91: 8 | U91: 422.53 | AC91: 18.8 | AD91: 47 | AE91: 47 | AF91: 18.8 | AG91: 47 | AH91: 18.8 | AI91: 47 | AL91: A
A92: 132.089 | B92: Accepted | C92: NA | D92: Statkraft Markets GmbH | E92: AG-MSTK01 | F92: DNO Connection | G92: DSF: Storage (for export) | H92: 2021-01-01 | I92: 2021-01-31 | J92: 01.01.21 - 31.01.21 (1 months) | K92: As per FFR framework agreement | L92: 700 | M92: 1500 | N92: 8 | O92: 700 | P92: 1500 | Q92: 8 | R92: 700 | S92: 1500 | T92: 8 | U92: 441.33 | AC92: 18.8 | AD92: 47 | AE92: 47 | AF92: 18.8 | AG92: 47 | AH92: 18.8 | AI92: 47 | AL92: A
A93: 132.09 | B93: Accepted | C93: NA | D93: Statkraft Markets GmbH | E93: AG-MSTK01 | F93: DNO Connection | G93: DSF: Storage (for export) | H93: 2021-01-01 | I93: 2021-01-31 | J93: 01.01.21 - 31.01.21 (1 months) | K93: As per FFR framework agreement | L93: 1500 | M93: 2300 | N93: 8 | O93: 1500 | P93: 2300 | Q93: 8 | R93: 1500 | S93: 2300 | T93: 8 | U93: 700 | AC93: 16 | AD93: 40 | AE93: 40 | AF93: 16 | AG93: 40 | AH93: 16 | AI93: 40 | AL93: A
A94: 132.091 | B94: Accepted | C94: NA | D94: Social Energy Limited | E94: SOC1-FFR | F94: DNO connection | G94: DSF: Storage (onsite) | H94: 2020-12-31 | I94: 2021-01-31 | J94: 31.12.20 - 31.01.21 (1 months) | K94: As per FFR framework agreement | L94: 2300 | M94: 700 | N94: =IF(L94>M94, (2400-L94+M94)/100, IF(AND(L94="",M94="",L94=M94), "", IF(L94=M94,24,(M94-L94)/100))) -> 8 | O94: 2300 | P94: 700 | Q94: =IF(O94>P94, (2400-O94+P94)/100, IF(AND(O94="",P94="",O94=P94), "", IF(O94=P94,24,(P94-O94)/100))) -> 8 | R94: 2300 | S94: 700 | T94: =IF(R94>S94, (2400-R94+S94)/100, IF(AND(R94="",S94="",R94=S94), "", IF(R94=S94,24,(S94-R94)/100))) -> 8 | U94: 7.01 | AC94: 0.4 | AD94: 1 | AE94: 1 | AF94: 0.4 | AG94: 1 | AH94: 0.4 | AI94: 1 | AP94: H for only 30min
A95: 132.092 | B95: Accepted | C95: NA | D95: Social Energy Limited | E95: SOC1-FFR | F95: DNO connection | G95: DSF: Storage (onsite) | H95: 2021-01-01 | I95: 2021-01-31 | J95: 01.01.21 - 31.01.21 (1 months) | K95: As per FFR framework agreement | L95: 700 | M95: 1500 | N95: =IF(L95>M95, (2400-L95+M95)/100, IF(AND(L95="",M95="",L95=M95), "", IF(L95=M95,24,(M95-L95)/100))) -> 8 | O95: 700 | P95: 1500 | Q95: =IF(O95>P95, (2400-O95+P95)/100, IF(AND(O95="",P95="",O95=P95), "", IF(O95=P95,24,(P95-O95)/100))) -> 8 | R95: 700 | S95: 1500 | T95: =IF(R95>S95, (2400-R95+S95)/100, IF(AND(R95="",S95="",R95=S95), "", IF(R95=S95,24,(S95-R95)/100))) -> 8 | U95: 10.98 | AC95: 0.4 | AD95: 1 | AE95: 1 | AF95: 0.4 | AG95: 1 | AH95: 0.4 | AI95: 1 | AP95: H for only 30min
A96: 132.093 | B96: Accepted | C96: NA | D96: Social Energy Limited | E96: SOC1-FFR | F96: DNO connection | G96: DSF: Storage (onsite) | H96: 2021-01-01 | I96: 2021-01-31 | J96: 01.01.21 - 31.01.21 (1 months) | K96: As per FFR framework agreement | L96: 1500 | M96: 2300 | N96: 8 | O96: 1500 | P96: 2300 | Q96: 8 | R96: 1500 | S96: 2300 | T96: 8 | U96: 12.01 | AC96: 0.4 | AD96: 1 | AE96: 1 | AF96: 0.4 | AG96: 1 | AH96: 0.4 | AI96: 1 | AP96: H for only 30min
A97: 132.094 | B97: Accepted | C97: NA | D97: Social Energy Limited | E97: SOC2-FFR | F97: DNO connection | G97: DSF: Storage (onsite) | H97: 2020-12-31 | I97: 2021-01-31 | J97: 31.12.20 - 31.01.21 (1 months) | K97: As per FFR framework agreement | L97: 2300 | M97: 700 | N97: 8 | O97: 2300 | P97: 700 | Q97: 8 | R97: 2300 | S97: 700 | T97: 8 | U97: 7.19 | AC97: 0.4 | AD97: 1 | AE97: 1 | AF97: 0.4 | AG97: 1 | AH97: 0.4 | AI97: 1 | AP97: H for only 30min
A98: 132.095 | B98: Accepted | C98: NA | D98: Social Energy Limited | E98: SOC2-FFR | F98: DNO connection | G98: DSF: Storage (onsite) | H98: 2021-01-01 | I98: 2021-01-31 | J98: 01.01.21 - 31.01.21 (1 months) | K98: As per FFR framework agreement | L98: 700 | M98: 1500 | N98: 8 | O98: 700 | P98: 1500 | Q98: 8 | R98: 700 | S98: 1500 | T98: 8 | U98: 10.75 | AC98: 0.4 | AD98: 1 | AE98: 1 | AF98: 0.4 | AG98: 1 | AH98: 0.4 | AI98: 1 | AP98: H for only 30min
A99: 132.096 | B99: Accepted | C99: NA | D99: Social Energy Limited | E99: SOC2-FFR | F99: DNO connection | G99: DSF: Storage (onsite) | H99: 2021-01-01 | I99: 2021-01-31 | J99: 01.01.21 - 31.01.21 (1 months) | K99: As per FFR framework agreement | L99: 1500 | M99: 2300 | N99: 8 | O99: 1500 | P99: 2300 | Q99: 8 | R99: 1500 | S99: 2300 | T99: 8 | U99: 12.31 | AC99: 0.4 | AD99: 1 | AE99: 1 | AF99: 0.4 | AG99: 1 | AH99: 0.4 | AI99: 1 | AP99: H for only 30min
A100: 132.097 | B100: Accepted | C100: NA | D100: Social Energy Limited | E100: SOC3-FFR | F100: DNO connection | G100: DSF: Storage (onsite) | H100: 2020-12-31 | I100: 2021-01-31 | J100: 31.12.20 - 31.01.21 (1 months) | K100: As per FFR framework agreement | L100: 2300 | M100: 700 | N100: 8 | O100: 2300 | P100: 700 | Q100: 8 | R100: 2300 | S100: 700 | T100: 8 | U100: 7.37 | AC100: 0.4 | AD100: 1 | AE100: 1 | AF100: 0.4 | AG100: 1 | AH100: 0.4 | AI100: 1 | AP100: H for only 30min
A101: 132.098 | B101: Accepted | C101: NA | D101: Social Energy Limited | E101: SOC3-FFR | F101: DNO connection | G101: DSF: Storage (onsite) | H101: 2021-01-01 | I101: 2021-01-31 | J101: 01.01.21 - 31.01.21 (1 months) | K101: As per FFR framework agreement | L101: 700 | M101: 1500 | N101: 8 | O101: 700 | P101: 1500 | Q101: 8 | R101: 700 | S101: 1500 | T101: 8 | U101: 10.62 | AC101: 0.4 | AD101: 1 | AE101: 1 | AF101: 0.4 | AG101: 1 | AH101: 0.4 | AI101: 1 | AP101: H for only 30min
A102: 132.099 | B102: Accepted | C102: NA | D102: Social Energy Limited | E102: SOC3-FFR | F102: DNO connection | G102: DSF: Storage (onsite) | H102: 2021-01-01 | I102: 2021-01-31 | J102: 01.01.21 - 31.01.21 (1 months) | K102: As per FFR framework agreement | L102: 1500 | M102: 2300 | N102: 8 | O102: 1500 | P102: 2300 | Q102: 8 | R102: 1500 | S102: 2300 | T102: 8 | U102: 12.49 | AC102: 0.4 | AD102: 1 | AE102: 1 | AF102: 0.4 | AG102: 1 | AH102: 0.4 | AI102: 1 | AP102: H for only 30min
A103: 132.1 | B103: Accepted | C103: NA | D103: Social Energy Limited | E103: SOC4-FFR | F103: DNO connection | G103: DSF: Storage (onsite) | H103: 2020-12-31 | I103: 2021-01-31 | J103: 31.12.20 - 31.01.21 (1 months) | K103: As per FFR framework agreement | L103: 2300 | M103: 700 | N103: 8 | O103: 2300 | P103: 700 | Q103: 8 | R103: 2300 | S103: 700 | T103: 8 | U103: 7.58 | AC103: 0.4 | AD103: 1 | AE103: 1 | AF103: 0.4 | AG103: 1 | AH103: 0.4 | AI103: 1 | AP103: H for only 30min
A104: 132.101 | B104: Accepted | C104: NA | D104: Social Energy Limited | E104: SOC4-FFR | F104: DNO connection | G104: DSF: Storage (onsite) | H104: 2021-01-01 | I104: 2021-01-31 | J104: 01.01.21 - 31.01.21 (1 months) | K104: As per FFR framework agreement | L104: 700 | M104: 1500 | N104: 8 | O104: 700 | P104: 1500 | Q104: 8 | R104: 700 | S104: 1500 | T104: 8 | U104: 10.02 | AC104: 0.4 | AD104: 1 | AE104: 1 | AF104: 0.4 | AG104: 1 | AH104: 0.4 | AI104: 1 | AP104: H for only 30min
A105: 132.102 | B105: Accepted | C105: NA | D105: Social Energy Limited | E105: SOC4-FFR | F105: DNO connection | G105: DSF: Storage (onsite) | H105: 2021-01-01 | I105: 2021-01-31 | J105: 01.01.21 - 31.01.21 (1 months) | K105: As per FFR framework agreement | L105: 1500 | M105: 2300 | N105: 8 | O105: 1500 | P105: 2300 | Q105: 8 | R105: 1500 | S105: 2300 | T105: 8 | U105: 14.12 | AC105: 0.4 | AD105: 1 | AE105: 1 | AF105: 0.4 | AG105: 1 | AH105: 0.4 | AI105: 1 | AP105: H for only 30min
A106: 132.103 | B106: Accepted | C106: NA | D106: Social Energy Limited | E106: SOC5-FFR | F106: DNO connection | G106: DSF: Storage (onsite) | H106: 2020-12-31 | I106: 2021-01-31 | J106: 31.12.20 - 31.01.21 (1 months) | K106: As per FFR framework agreement | L106: 2300 | M106: 700 | N106: 8 | O106: 2300 | P106: 700 | Q106: 8 | R106: 2300 | S106: 700 | T106: 8 | U106: 7.99 | AC106: 0.4 | AD106: 1 | AE106: 1 | AF106: 0.4 | AG106: 1 | AH106: 0.4 | AI106: 1 | AP106: H for only 30min
A107: 132.104 | B107: Accepted | C107: NA | D107: Social Energy Limited | E107: SOC5-FFR | F107: DNO connection | G107: DSF: Storage (onsite) | H107: 2021-01-01 | I107: 2021-01-31 | J107: 01.01.21 - 31.01.21 (1 months) | K107: As per FFR framework agreement | L107: 700 | M107: 1500 | N107: 8 | O107: 700 | P107: 1500 | Q107: 8 | R107: 700 | S107: 1500 | T107: 8 | U107: 10.41 | AC107: 0.4 | AD107: 1 | AE107: 1 | AF107: 0.4 | AG107: 1 | AH107: 0.4 | AI107: 1 | AP107: H for only 30min
A108: 132.105 | B108: Accepted | C108: NA | D108: Social Energy Limited | E108: SOC5-FFR | F108: DNO connection | G108: DSF: Storage (onsite) | H108: 2021-01-01 | I108: 2021-01-31 | J108: 01.01.21 - 31.01.21 (1 months) | K108: As per FFR framework agreement | L108: 1500 | M108: 2300 | N108: 8 | O108: 1500 | P108: 2300 | Q108: 8 | R108: 1500 | S108: 2300 | T108: 8 | U108: 14.79 | AC108: 0.4 | AD108: 1 | AE108: 1 | AF108: 0.4 | AG108: 1 | AH108: 0.4 | AI108: 1 | AP108: H for only 30min
A109: 132.106 | B109: Accepted | C109: NA | D109: Social Energy Limited | E109: SOC6-FFR | F109: DNO connection | G109: DSF: Storage (onsite) | H109: 2020-12-31 | I109: 2021-01-31 | J109: 31.12.20 - 31.01.21 (1 months) | K109: As per FFR framework agreement | L109: 2300 | M109: 700 | N109: 8 | O109: 2300 | P109: 700 | Q109: 8 | R109: 2300 | S109: 700 | T109: 8 | U109: 8.22 | AC109: 0.4 | AD109: 1 | AE109: 1 | AF109: 0.4 | AG109: 1 | AH109: 0.4 | AI109: 1 | AP109: H for only 30min
A110: 132.107 | B110: Accepted | C110: NA | D110: Social Energy Limited | E110: SOC6-FFR | F110: DNO connection | G110: DSF: Storage (onsite) | H110: 2021-01-01 | I110: 2021-01-31 | J110: 01.01.21 - 31.01.21 (1 months) | K110: As per FFR framework agreement | L110: 700 | M110: 1500 | N110: 8 | O110: 700 | P110: 1500 | Q110: 8 | R110: 700 | S110: 1500 | T110: 8 | U110: 10.23 | AC110: 0.4 | AD110: 1 | AE110: 1 | AF110: 0.4 | AG110: 1 | AH110: 0.4 | AI110: 1 | AP110: H for only 30min
A111: 132.108 | B111: Accepted | C111: NA | D111: Social Energy Limited | E111: SOC6-FFR | F111: DNO connection | G111: DSF: Storage (onsite) | H111: 2021-01-01 | I111: 2021-01-31 | J111: 01.01.21 - 31.01.21 (1 months) | K111: As per FFR framework agreement | L111: 1500 | M111: 2300 | N111: 8 | O111: 1500 | P111: 2300 | Q111: 8 | R111: 1500 | S111: 2300 | T111: 8 | U111: 15.21 | AC111: 0.4 | AD111: 1 | AE111: 1 | AF111: 0.4 | AG111: 1 | AH111: 0.4 | AI111: 1 | AP111: H for only 30min
A112: 132.109 | B112: Accepted | C112: NA | D112: Social Energy Limited | E112: SOC7-FFR | F112: DNO connection | G112: DSF: Storage (onsite) | H112: 2020-12-31 | I112: 2021-01-31 | J112: 31.12.20 - 31.01.21 (1 months) | K112: As per FFR framework agreement | L112: 2300 | M112: 700 | N112: 8 | O112: 2300 | P112: 700 | Q112: 8 | R112: 2300 | S112: 700 | T112: 8 | U112: 8.49 | AC112: 0.4 | AD112: 1 | AE112: 1 | AF112: 0.4 | AG112: 1 | AH112: 0.4 | AI112: 1 | AP112: H for only 30min
A113: 132.11 | B113: Accepted | C113: NA | D113: Social Energy Limited | E113: SOC7-FFR | F113: DNO connection | G113: DSF: Storage (onsite) | H113: 2021-01-01 | I113: 2021-01-31 | J113: 01.01.21 - 31.01.21 (1 months) | K113: As per FFR framework agreement | L113: 700 | M113: 1500 | N113: 8 | O113: 700 | P113: 1500 | Q113: 8 | R113: 700 | S113: 1500 | T113: 8 | U113: 10.12 | AC113: 0.4 | AD113: 1 | AE113: 1 | AF113: 0.4 | AG113: 1 | AH113: 0.4 | AI113: 1 | AP113: H for only 30min
A114: 132.111 | B114: Accepted | C114: NA | D114: Social Energy Limited | E114: SOC7-FFR | F114: DNO connection | G114: DSF: Storage (onsite) | H114: 2021-01-01 | I114: 2021-01-31 | J114: 01.01.21 - 31.01.21 (1 months) | K114: As per FFR framework agreement | L114: 1500 | M114: 2300 | N114: 8 | O114: 1500 | P114: 2300 | Q114: 8 | R114: 1500 | S114: 2300 | T114: 8 | U114: 16.02 | AC114: 0.4 | AD114: 1 | AE114: 1 | AF114: 0.4 | AG114: 1 | AH114: 0.4 | AI114: 1 | AP114: H for only 30min
A115: 132.112 | B115: Accepted | C115: NA | D115: Social Energy Limited | E115: SOC8-FFR | F115: DNO connection | G115: DSF: Storage (onsite) | H115: 2020-12-31 | I115: 2021-01-31 | J115: 31.12.20 - 31.01.21 (1 months) | K115: As per FFR framework agreement | L115: 2300 | M115: 700 | N115: 8 | O115: 2300 | P115: 700 | Q115: 8 | R115: 2300 | S115: 700 | T115: 8 | U115: 7.81 | AC115: 0.4 | AD115: 1 | AE115: 1 | AF115: 0.4 | AG115: 1 | AH115: 0.4 | AI115: 1 | AP115: H for only 30min
A116: 132.113 | B116: Accepted | C116: NA | D116: Social Energy Limited | E116: SOC8-FFR | F116: DNO connection | G116: DSF: Storage (onsite) | H116: 2021-01-01 | I116: 2021-01-31 | J116: 01.01.21 - 31.01.21 (1 months) | K116: As per FFR framework agreement | L116: 700 | M116: 1500 | N116: 8 | O116: 700 | P116: 1500 | Q116: 8 | R116: 700 | S116: 1500 | T116: 8 | U116: 10.53 | AC116: 0.4 | AD116: 1 | AE116: 1 | AF116: 0.4 | AG116: 1 | AH116: 0.4 | AI116: 1 | AP116: H for only 30min
A117: 132.114 | B117: Accepted | C117: NA | D117: Social Energy Limited | E117: SOC8-FFR | F117: DNO connection | G117: DSF: Storage (onsite) | H117: 2021-01-01 | I117: 2021-01-31 | J117: =IFERROR(TEXT(H117,"DD.MM.YY")&" - "&TEXT(I117,"DD.MM.YY")&" ("&DATEDIF(H117,I117+1,"m")&" months)","Tender End Date is Before Start Date") -> 01.01.21 - 31.01.21 (1 months) | K117: As per FFR framework agreement | L117: 1500 | M117: 2300 | N117: 8 | O117: 1500 | P117: 2300 | Q117: 8 | R117: 1500 | S117: 2300 | T117: 8 | U117: 13.14 | AC117: 0.4 | AD117: 1 | AE117: 1 | AF117: 0.4 | AG117: 1 | AH117: 0.4 | AI117: 1 | AP117: H for only 30min
A118: 132.115 | B118: Accepted | C118: NA | D118: Pelham Storage Limited | E118: PLHM-1 | F118: DNO connection | G118: DSF: Storage (for export) | H118: 2020-12-31 | I118: 2021-01-31 | J118: =IFERROR(TEXT(H118,"DD.MM.YY")&" - "&TEXT(I118,"DD.MM.YY")&" ("&DATEDIF(H118,I118+1,"m")&" months)","Tender End Date is Before Start Date") -> 31.12.20 - 31.01.21 (1 months) | K118: As per FFR framework agreement | L118: 2300 | M118: 700 | N118: =IF(L118>M118, (2400-L118+M118)/100, IF(AND(L118="",M118="",L118=M118), "", IF(L118=M118,24,(M118-L118)/100))) -> 8 | O118: 2300 | P118: 700 | Q118: =IF(O118>P118, (2400-O118+P118)/100, IF(AND(O118="",P118="",O118=P118), "", IF(O118=P118,24,(P118-O118)/100))) -> 8 | R118: 2300 | S118: 700 | T118: =IF(R118>S118, (2400-R118+S118)/100, IF(AND(R118="",S118="",R118=S118), "", IF(R118=S118,24,(S118-R118)/100))) -> 8 | U118: 411.7 | AC118: 18.4 | AD118: 46 | AE118: 46 | AF118: 18.4 | AG118: 46 | AH118: 18.4 | AI118: 46 | AL118: A
A119: 132.116 | B119: Accepted | C119: NA | D119: Pelham Storage Limited | E119: PLHM-1 | F119: DNO connection | G119: DSF: Storage (for export) | H119: 2021-01-01 | I119: 2021-01-31 | J119: 01.01.21 - 31.01.21 (1 months) | K119: As per FFR framework agreement | L119: 700 | M119: 1500 | N119: =IF(L119>M119, (2400-L119+M119)/100, IF(AND(L119="",M119="",L119=M119), "", IF(L119=M119,24,(M119-L119)/100))) -> 8 | O119: 700 | P119: 1500 | Q119: =IF(O119>P119, (2400-O119+P119)/100, IF(AND(O119="",P119="",O119=P119), "", IF(O119=P119,24,(P119-O119)/100))) -> 8 | R119: 700 | S119: 1500 | T119: =IF(R119>S119, (2400-R119+S119)/100, IF(AND(R119="",S119="",R119=S119), "", IF(R119=S119,24,(S119-R119)/100))) -> 8 | U119: 450.24 | AC119: 19.2 | AD119: 48 | AE119: 48 | AF119: 19.2 | AG119: 48 | AH119: 19.2 | AI119: 48 | AL119: A
A120: 132.117 | B120: Accepted | C120: NA | D120: Pelham Storage Limited | E120: PLHM-1 | F120: DNO connection | G120: DSF: Storage (for export) | H120: 2021-01-01 | I120: 2021-01-31 | J120: 01.01.21 - 31.01.21 (1 months) | K120: As per FFR framework agreement | L120: 1500 | M120: 2300 | N120: 8 | O120: 1500 | P120: 2300 | Q120: 8 | R120: 1500 | S120: 2300 | T120: 8 | U120: 393.6 | AC120: 12.8 | AD120: 32 | AE120: 32 | AF120: 12.8 | AG120: 32 | AH120: 12.8 | AI120: 32 | AL120: A
A121: 132.118 | B121: Rejected | C121: 2 | D121: UK Power Reserve Ltd | E121: AFFR1 | F121: DNO connection | G121: DSF: Storage (for export) | H121: 2020-12-31 | I121: 2021-01-31 | J121: 31.12.20 - 31.01.21 (1 months) | K121: As per FFR framework agreement | L121: 2300 | M121: 2300 | N121: =IF(L121>M121, (2400-L121+M121)/100, IF(AND(L121="",M121="",L121=M121), "", IF(L121=M121,24,(M121-L121)/100))) -> 24 | O121: 2300 | P121: 2300 | Q121: =IF(O121>P121, (2400-O121+P121)/100, IF(AND(O121="",P121="",O121=P121), "", IF(O121=P121,24,(P121-O121)/100))) -> 24 | R121: 2300 | S121: 2300 | T121: =IF(R121>S121, (2400-R121+S121)/100, IF(AND(R121="",S121="",R121=S121), "", IF(R121=S121,24,(S121-R121)/100))) -> 24 | U121: =23*20 -> 460 | AC121: 8 | AD121: 20 | AE121: 20 | AF121: 8 | AG121: 20 | AH121: 8 | AI121: 20
A122: 132.119 | B122: Rejected | C122: 2 | D122: UK Power Reserve Ltd | E122: AFFR2 | F122: DNO connection | G122: DSF: Storage (for export) | H122: 2020-12-31 | I122: 2021-01-31 | J122: 31.12.20 - 31.01.21 (1 months) | K122: As per FFR framework agreement | L122: 2300 | M122: 2300 | N122: =IF(L122>M122, (2400-L122+M122)/100, IF(AND(L122="",M122="",L122=M122), "", IF(L122=M122,24,(M122-L122)/100))) -> 24 | O122: 2300 | P122: 2300 | Q122: =IF(O122>P122, (2400-O122+P122)/100, IF(AND(O122="",P122="",O122=P122), "", IF(O122=P122,24,(P122-O122)/100))) -> 24 | R122: 2300 | S122: 2300 | T122: =IF(R122>S122, (2400-R122+S122)/100, IF(AND(R122="",S122="",R122=S122), "", IF(R122=S122,24,(S122-R122)/100))) -> 24 | U122: =21.5*20 -> 430 | AC122: 8 | AD122: 20 | AE122: 20 | AF122: 8 | AG122: 20 | AH122: 8 | AI122: 20
A123: 132.12 | B123: Rejected | C123: 2 | D123: UK Power Reserve Ltd | E123: AFFR3 | F123: DNO connection | G123: DSF: Storage (for export) | H123: 2020-12-31 | I123: 2021-01-31 | J123: 31.12.20 - 31.01.21 (1 months) | K123: As per FFR framework agreement | L123: 2300 | M123: 2300 | N123: =IF(L123>M123, (2400-L123+M123)/100, IF(AND(L123="",M123="",L123=M123), "", IF(L123=M123,24,(M123-L123)/100))) -> 24 | O123: 2300 | P123: 2300 | Q123: =IF(O123>P123, (2400-O123+P123)/100, IF(AND(O123="",P123="",O123=P123), "", IF(O123=P123,24,(P123-O123)/100))) -> 24 | R123: 2300 | S123: 2300 | T123: =IF(R123>S123, (2400-R123+S123)/100, IF(AND(R123="",S123="",R123=S123), "", IF(R123=S123,24,(S123-R123)/100))) -> 24 | U123: =22*20 -> 440 | AC123: 8 | AD123: 20 | AE123: 20 | AF123: 8 | AG123: 20 | AH123: 8 | AI123: 20
A124: 132.121 | B124: Rejected | C124: 2 | D124: BESS HoldCo 3 Ltd | E124: DBESSA-33 | F124: DNO connection | G124: Battery | H124: 2020-12-31 | I124: 2021-01-31 | J124: 31.12.20 - 31.01.21 (1 months) | K124: As per FFR framework agreement | L124: 2300 | M124: 700 | N124: =IF(L124>M124, (2400-L124+M124)/100, IF(AND(L124="",M124="",L124=M124), "", IF(L124=M124,24,(M124-L124)/100))) -> 8 | O124: 2300 | P124: 700 | Q124: =IF(O124>P124, (2400-O124+P124)/100, IF(AND(O124="",P124="",O124=P124), "", IF(O124=P124,24,(P124-O124)/100))) -> 8 | R124: 2300 | S124: 700 | T124: =IF(R124>S124, (2400-R124+S124)/100, IF(AND(R124="",S124="",R124=S124), "", IF(R124=S124,24,(S124-R124)/100))) -> 8 | U124: 63 | AC124: 3.6 | AD124: 9 | AE124: 9 | AF124: 3.6 | AG124: 9 | AH124: 3.6 | AI124: 9 | AL124: D
A125: 132.122 | B125: Rejected | C125: 2 | D125: BESS HoldCo 3 Ltd | E125: DBESSA-33 | F125: DNO connection | G125: Battery | H125: 2021-01-01 | I125: 2021-01-31 | J125: 01.01.21 - 31.01.21 (1 months) | K125: As per FFR framework agreement | L125: 700 | M125: 2300 | N125: 16 | O125: 700 | P125: 2300 | Q125: 16 | R125: 700 | S125: 2300 | T125: 16 | U125: 202.5 | AC125: 3.6 | AD125: 9 | AE125: 9 | AF125: 3.6 | AG125: 9 | AH125: 3.6 | AI125: 9 | AL125: D
A126: 132.123 | B126: Rejected | C126: 2 | D126: BESS HoldCo 3 Ltd | E126: DBESSC-33 | F126: DNO connection | G126: Battery | H126: 2020-12-31 | I126: 2021-01-31 | J126: 31.12.20 - 31.01.21 (1 months) | K126: As per FFR framework agreement | L126: 2300 | M126: 700 | N126: 8 | O126: 2300 | P126: 700 | Q126: 8 | R126: 2300 | S126: 700 | T126: 8 | U126: 70 | AC126: 4 | AD126: 10 | AE126: 10 | AF126: 4 | AG126: 10 | AH126: 4 | AI126: 10 | AL126: E
A127: 132.124 | B127: Rejected | C127: 2 | D127: BESS HoldCo 3 Ltd | E127: DBESSC-33 | F127: DNO connection | G127: Battery | H127: 2021-01-01 | I127: 2021-01-31 | J127: 01.01.21 - 31.01.21 (1 months) | K127: As per FFR framework agreement | L127: 700 | M127: 2300 | N127: 16 | O127: 700 | P127: 2300 | Q127: 16 | R127: 700 | S127: 2300 | T127: 16 | U127: 225 | AC127: 4 | AD127: 10 | AE127: 10 | AF127: 4 | AG127: 10 | AH127: 4 | AI127: 10 | AL127: E
A128: 132.125 | B128: Rejected | C128: 2 | D128: BESS HoldCo 3 Ltd | E128: DBESSF-33 | F128: DNO connection | G128: Battery | H128: 2020-12-31 | I128: 2021-01-31 | J128: 31.12.20 - 31.01.21 (1 months) | K128: As per FFR framework agreement | L128: 2300 | M128: 700 | N128: 8 | O128: 2300 | P128: 700 | Q128: 8 | R128: 2300 | S128: 700 | T128: 8 | U128: 70 | AC128: 4 | AD128: 10 | AE128: 10 | AF128: 4 | AG128: 10 | AH128: 4 | AI128: 10 | AL128: F
A129: 132.126 | B129: Rejected | C129: 2 | D129: BESS HoldCo 3 Ltd | E129: DBESSF-33 | F129: DNO connection | G129: Battery | H129: 2021-01-01 | I129: 2021-01-31 | J129: =IFERROR(TEXT(H129,"DD.MM.YY")&" - "&TEXT(I129,"DD.MM.YY")&" ("&DATEDIF(H129,I129+1,"m")&" months)","Tender End Date is Before Start Date") -> 01.01.21 - 31.01.21 (1 months) | K129: As per FFR framework agreement | L129: 700 | M129: 2300 | N129: 16 | O129: 700 | P129: 2300 | Q129: 16 | R129: 700 | S129: 2300 | T129: 16 | U129: 225 | AC129: 4 | AD129: 10 | AE129: 10 | AF129: 4 | AG129: 10 | AH129: 4 | AI129: 10 | AL129: F
A131: Rejection Codes | B131: Code | D131: Reason
B132: 1 | C132: Beneficial | E132: 1.1 | F132: Req. satisifed by more beneficial bids
E133: 1.2 | F133: No outstanding req.
E134: 1.3 | F134: Desired procurement volume already met
E135: 1.4 | F135: Formed part of AON. Not collectively beneficial
B136: 2 | C136: Price not beneificial across tendered period
B137: 3 | C137: Does not meet tender prerequisites
B138: 4 | C138: Multiple tenders received for the same unit
B139: 5 | C139: Beyond desired procument volume
